{"text_format":"3","workbook":"xlsx","n_sheets":12,"sheets":["Europæiske ERV","Europæiske ERV HOVEDMENU","Info om virksomhed","Præmie beregning","Klausuler","Bruger info","Bruger admin","PDF tilbud","PDF accepteret tilbud","PDF certifikat","ERV præmie satser","ERV Data"],"not_rendered":{"images":22,"macros":1,"defined_names":9,"comments":2},"read":"whole","date_system":"1900"}

{"sheet":"Europæiske ERV","index":0,"n_rows":31,"n_cols":6,"rows_kept":31,"hidden":true,"merged":[[4,1,8,10],[14,1,18,10],[30,5,30,10]]}
{"$rows_empty":14}
[null,"PRÆMIEBEREGNER\nfra januar 2023"]
{"$rows_empty":15}
[null,null,{"$f":"+'ERV Data'!$D$1","v":"#40503 - Y2022_1.00"},null,null,"© 2022 - Europæiske ERV Denmark - All rights reserved."]

{"sheet":"Europæiske ERV HOVEDMENU","index":1,"n_rows":35,"n_cols":11,"rows_kept":35,"merged":[[4,3,8,9],[13,10,19,12],[34,5,34,10]]}
[]
[]
[]
[]
[{"$nulls":3},"PRÆMIEBEREGNER\nfra januar 2023"]
{"$rows_empty":8}
[{"$nulls":10},"HUSK\nDet er denne pdf der skal indsendes til Europæiske ERV for udstedelse af police"]
{"$rows_empty":20}
[null,null,{"$f":"+'ERV Data'!$D$1","v":"#40503 - Y2022_1.00"},null,null,"© 2022 - Europæiske ERV Denmark - All rights reserved."]

{"sheet":"Info om virksomhed","index":2,"n_rows":39,"n_cols":4,"rows_kept":39,"hidden":true,"merged":[[5,2,5,3],[26,3,27,3],[34,2,34,3]]}
[]
[]
[]
[]
[]
[null,null,"Information om virksomheden"]
[]
[null,null,"Virksomhedens navn","Indtast virksomhedens navn"]
[null,null,"Adresse","Indtast adresse"]
[null,null,"Post nr","Indtast postnr"]
[null,null,"By","Indtast by"]
[null,null,"Land","Indtast primært bopælsland"]
[null,null,"CVR nummer","Indtast CVR nr"]
[]
[null,null,"Kontaktperson i virksomhed","Indtast kontaktperson"]
[null,null,"Tlf. nummer på kontaktperson","Indtast tlf"]
[null,null,"E-mail kontaktperson","Indtast email"]
[]
[null,null,"Start for forsikring","dd-mm-år"]
[null,null,"Hovedforfald","mm-år"]
[]
[null,null,"Antal betalingsrater pr. år",1]
[]
[null,null,"Sprog på police- Dansk/Engelsk","Dansk"]
[null,null,"Antal policekort",1]
[]
[null,null,"Medforsikrede datterselskaber,\ninkl lande og cvr numre","Indtast datterselskaber inkl cvr nummer "]
[null,null,"(Lande uden for EU skal godkendes af Europæiske ERV)"]
[]
[]
[]
[]
[]
[null,null,"Har kunden forsikring i eksisterende\nselskab som skal opsiges? ","Nej"]
[null,null,{"$f":"IF($D$34=\"Ja\",IF('ERV Data'!D10=\"Husk skadesprocent\",\"HUSK at sikre at skadesprocenten ikke overstiger 50% af den beregnet ERV præmie ?\",IF('ERV Data'!D10=\"Risikospørgsmål\",\"Kunden må maksimalt have haft 3 skader indenfor de sidste tre år ved en præmie op til 5.000 kr.\nKunden må maksimalt have haft 6 skader indenfor de sidste tre år ved en præmie mellem 5.001 kr. og 75.000 kr.\",\"\")))","v":false}]
[null,null,{"$f":"IF($D$34=\"Ja\",\"Hvilket forsikringsselskab ?\",\"\")","v":""},"Hvilket forsikringsselskab"]
[null,null,{"$f":"IF($D$34=\"Ja\",\"Policenummer ?\",\"\")","v":""},"Hvilket policenummer"]
[null,null,{"$f":"IF($D$34=\"Ja\",\"Hovedforfaldsdato ?\",\"\")","v":""},"dd-mm-år"]
[null,null,{"$f":"IF($D$34=\"Ja\",\"Udløbsdato ?\",\"\")","v":""},"dd-mm-år"]

{"sheet":"Præmie beregning","index":3,"n_rows":113,"n_cols":11,"rows_kept":113,"hidden":true,"merged":[[1,7,1,10],[3,1,4,6],[5,1,5,6],[5,7,5,8],[5,9,5,10],[6,7,6,8],[6,9,6,10],[59,1,59,6],[62,1,62,3],[68,1,68,10],[69,6,69,7],[69,8,69,9],[70,6,70,7],[70,8,70,9],[72,2,72,6],[72,7,72,10],[73,6,73,7],[73,8,73,9],[75,1,75,10],[76,1,76,10],[77,1,77,10],[78,1,78,10],[79,1,79,10],[80,1,80,10],[81,1,81,10],[82,1,82,10],[83,1,83,10],[84,1,84,10],[85,1,85,10],[86,1,86,10],[87,1,87,10],[88,1,88,10],[89,1,89,10],[90,1,90,10],[91,1,91,10],[92,1,92,10],[93,1,93,10],[94,1,94,10],[95,1,95,10],[96,1,96,10],[97,1,97,10],[98,1,98,10],[99,1,99,10],[100,1,100,10],[101,1,101,10],[102,1,102,10],[103,1,103,10],[104,1,104,10],[105,1,105,10],[106,1,106,10],[107,1,107,10],[108,1,108,10],[109,1,109,10],[110,1,110,10],[111,1,111,10],[112,1,112,10]]}
[]
[]
[]
[null,{"$f":"'Bruger info'!D8","v":"Special Risk - forsikringsformidling ApS"}]
[]
[null,"Valuta i DKK.",{"$nulls":5},"ERV præmie - 2023",null,{"$f":"CONCATENATE(B4,\" \",\"præmie - 2023\")","v":"Special Risk - forsikringsformidling ApS præmie - 2023"}]
[null,"Forsikringsdækning",{"$nulls":4},"Forsikringssum","pr. rejsedag",null,"pr. rejsedag"]
[]
[{"$nulls":3},"1. Grundækning, stk. 1-4:"]
[{"$nulls":3},"(Sygdom/tilskadekomst, Hjemtransport, Sygeledsagelse/Tilkaldelse, Krisehjælp)"]
[{"$nulls":3},"a. Norden",null,null,"Ubegrænset",{"$f":"'ERV præmie satser'!J7","v":11.72},null,{"$f":"'ERV præmie satser'!L7","v":11.72}]
[{"$nulls":3},"b. Europa",null,null,"Ubegrænset",{"$f":"'ERV præmie satser'!J8","v":{"v":30.5,"d":"30.50"}},null,{"$f":"'ERV præmie satser'!L8","v":{"v":30.5,"d":"30.50"}}]
[{"$nulls":3},"c. Verden",null,null,"Ubegrænset",{"$f":"'ERV præmie satser'!J9","v":50.58},null,{"$f":"'ERV præmie satser'!L9","v":50.58}]
[]
[null,"Ja",null,"2. Rejseulykke, stk. 5: "]
[{"$nulls":3},"(Min 1 - max 2.000.000 kr.)","Ulykke- Død",null,{"v":500000,"d":"500,000"}]
[{"$nulls":3},"(Min 1 - max 2.000.000 kr.)","Ulykke - Invaliditet",null,{"v":500000,"d":"500,000"},{"$f":"IF($B$15=\"JA\",SUM('ERV præmie satser'!J13),\"Fravalgt\")","v":{"v":8.049999999999999,"d":"8.05"}},null,{"$f":"IF($B$15=\"JA\",SUM('ERV præmie satser'!L13),\"Fravalgt\")","v":{"v":8.049999999999999,"d":"8.05"}}]
[null,"Ja",null,"Dobbelt erstatning "]
[]
[null,"Ja",null,"3. Rejseliv og sygdomsinvaliditet, stk. 6:"]
[{"$nulls":3},"(Min 1 - max 1.000.000 kr.)","Livsforsikring Død",null,{"v":500000,"d":"500,000"}]
[{"$nulls":3},"(Min 1 - max 1.000.000 kr.)","Sygdomsinvaliditet",null,{"v":500000,"d":"500,000"},{"$f":"IF($B$20=\"JA\",SUM('ERV præmie satser'!J18),\"Fravalgt\")","v":{"v":8.5,"d":"8.50"}},null,{"$f":"IF($B$20=\"JA\",SUM('ERV præmie satser'!L18),\"Fravalgt\")","v":{"v":8.5,"d":"8.50"}}]
[]
[null,"Ja",null,"4. Forsinket fremmøde - mistet, forsinket eller aflyst afgang, stk. 7:",{"$nulls":3},{"$f":"IF($B$24=\"JA\",SUM('ERV præmie satser'!J20),\"Fravalgt\")","v":{"v":3.210636,"d":"3.21"}},null,{"$f":"IF($B$24=\"JA\",SUM('ERV præmie satser'!L20),\"Fravalgt\")","v":{"v":3.210636,"d":"3.21"}}]
[]
[null,"Ja",null,"5. Bagageforsinkelse, stk. 8:"]
[{"$nulls":3},"(Min 3.000 - max 7.000 kr.)",null,null,{"v":5000,"d":"5,000"},{"$f":"IF($B$26=\"JA\",SUM('ERV præmie satser'!J23),\"Fravalgt\")","v":{"v":11.596458,"d":"11.60"}},null,{"$f":"IF($B$26=\"JA\",SUM('ERV præmie satser'!L23),\"Fravalgt\")","v":{"v":11.596458,"d":"11.60"}}]
[]
[null,"Ja",null,"6. Vejhjælp, stk. 9:",{"$nulls":3},{"$f":"IF($B$29=\"JA\",SUM('ERV præmie satser'!J25),\"Fravalgt\")","v":{"v":0.5613,"d":"0.56"}},null,{"$f":"IF($B$29=\"JA\",SUM('ERV præmie satser'!L25),\"Fravalgt\")","v":{"v":0.5613,"d":"0.56"}}]
[]
[null,"Ja",null,"7. Bagage, stk. 10:"]
[{"$nulls":3},"(Bagage min 10.000 - max 75.000 kr.)","Bagage",null,{"v":30000,"d":"30,000"}]
[{"$nulls":3},"(Kontanter min 5.000 - max 10.000 kr.)","Kontanter",null,{"v":5000,"d":"5,000"},{"$f":"IF($B$31=\"JA\",SUM('ERV præmie satser'!J29),\"Fravalgt\")","v":{"v":5.4863600144,"d":"5.49"}},null,{"$f":"IF($B$31=\"JA\",SUM('ERV præmie satser'!L29),\"Fravalgt\")","v":{"v":5.4863600144,"d":"5.49"}}]
[]
[null,"Ja",null,"8. Hjemkald, stk. 11:",{"$nulls":3},{"$f":"IF($B$35=\"JA\",SUM('ERV præmie satser'!J31),\"Fravalgt\")","v":{"v":4.546530000000001,"d":"4.55"}},null,{"$f":"IF($B$35=\"JA\",SUM('ERV præmie satser'!L31),\"Fravalgt\")","v":{"v":4.546530000000001,"d":"4.55"}}]
[]
[null,"Ja",null,"9. Erstatningsmedarbejder, stk. 12:",{"$nulls":3},{"$f":"IF($B$37=\"JA\",SUM('ERV præmie satser'!J33),\"Fravalgt\")","v":{"v":0.426588,"d":"0.43"}},null,{"$f":"IF($B$37=\"JA\",SUM('ERV præmie satser'!L33),\"Fravalgt\")","v":{"v":0.426588,"d":"0.43"}}]
[]
[null,"Ja",null,"10. Tryghedspakken, stk. 13:",{"$nulls":3},{"$f":"IF($B$39=\"JA\",SUM('ERV præmie satser'!J35),\"Fravalgt\")","v":{"v":1.167504,"d":"1.17"}},null,{"$f":"IF($B$39=\"JA\",SUM('ERV præmie satser'!L35),\"Fravalgt\")","v":{"v":1.167504,"d":"1.17"}}]
[]
[null,"Fravalgt",null,"10.1 Udvide trygshedspakken med Travel Security Hotline"]
[{"$nulls":3},{"$f":"\"Præmie pr. dag, tillægges i rejsedage (Bopælsland: \"&'ERV præmie satser'!L70 &\" Norden: \"&'ERV præmie satser'!L71&\", Europa: \"&'ERV præmie satser'!L72&\", Verden: \"&'ERV præmie satser'!L73&\")\"","v":"Præmie pr. dag, tillægges i rejsedage (Bopælsland: 0,09 Norden: 0,97, Europa: 2,38, Verden: 3,88)"}]
[null,"Ja",null,"11 Privatansvar og global juridisk assistance, stk. 14:",{"$nulls":3},{"$f":"IF($B$43=\"JA\",SUM('ERV præmie satser'!J39),\"Fravalgt\")","v":{"v":0.684786,"d":"0.68"}},null,{"$f":"IF($B$43=\"JA\",SUM('ERV præmie satser'!L39),\"Fravalgt\")","v":{"v":0.684786,"d":"0.68"}}]
[]
[null,"Ja",null,"12 Overfald, stk. 15:",{"$nulls":3},{"$f":"IF($B$45=\"JA\",SUM('ERV præmie satser'!J41),\"Fravalgt\")","v":{"v":1.1226,"d":"1.12"}},null,{"$f":"IF($B$45=\"JA\",SUM('ERV præmie satser'!L41),\"Fravalgt\")","v":{"v":1.1226,"d":"1.12"}}]
[]
[null,"Ja",null,"13. Selvrisiko indbo- og bilforsikring – gælder kun ved fast bopæl i EU, stk. 16:",{"$nulls":3},{"$f":"IF($B$47=\"JA\",SUM('ERV præmie satser'!J43),\"Fravalgt\")","v":{"v":1.5716400000000001,"d":"1.57"}},null,{"$f":"IF($B$47=\"JA\",SUM('ERV præmie satser'!L43),\"Fravalgt\")","v":{"v":1.5716400000000001,"d":"1.57"}}]
[]
[null,"Ja",null,"14. Selvrisiko ved leje af motorkøretøj, stk. 17:",{"$nulls":3},{"$f":"IF($B$49=\"JA\",SUM('ERV præmie satser'!J45),\"Fravalgt\")","v":{"v":0.5613,"d":"0.56"}},null,{"$f":"IF($B$49=\"JA\",SUM('ERV præmie satser'!L45),\"Fravalgt\")","v":{"v":0.5613,"d":"0.56"}}]
[]
[null,"Ja",null,"15. Afbestilling,  stk. 18:"]
[{"$nulls":3},"(Min 5.000 - max 50.000 kr.)",null,null,{"v":5000,"d":"5,000"},{"$f":"IF($B$51=\"JA\",SUM('ERV præmie satser'!J48),\"Fravalgt\")","v":{"v":10.732056000000002,"d":"10.73"}},null,{"$f":"IF($B$51=\"JA\",SUM('ERV præmie satser'!L48),\"Fravalgt\")","v":{"v":10.732056000000002,"d":"10.73"}}]
[]
[{"$nulls":3},"Antal rejsedage",{"$nulls":4},"i alt",null,"i alt"]
[{"$nulls":3},"Norden","Antal rejsedage:",null,0,{"$f":"'ERV præmie satser'!J51","v":{"v":69.93775801440002,"d":"69.94"}},{"$f":"'ERV præmie satser'!J57","v":{"v":0,"d":"0.00"}},{"$f":"'ERV præmie satser'!L51","v":{"v":69.93775801440002,"d":"69.94"}},{"$f":"'ERV præmie satser'!L57","v":{"v":0,"d":"0.00"}}]
[{"$nulls":3},"Europa","Antal rejsedage:",null,0,{"$f":"'ERV præmie satser'!J52","v":{"v":88.71775801439999,"d":"88.72"}},{"$f":"'ERV præmie satser'!J58","v":{"v":0,"d":"0.00"}},{"$f":"'ERV præmie satser'!L52","v":{"v":88.71775801439999,"d":"88.72"}},{"$f":"'ERV præmie satser'!L58","v":{"v":0,"d":"0.00"}}]
[{"$nulls":3},"Verden","Antal rejsedage:",null,0,{"$f":"'ERV præmie satser'!J53","v":{"v":108.7977580144,"d":"108.80"}},{"$f":"'ERV præmie satser'!J59","v":{"v":0,"d":"0.00"}},{"$f":"'ERV præmie satser'!L53","v":{"v":108.7977580144,"d":"108.80"}},{"$f":"'ERV præmie satser'!L59","v":{"v":0,"d":"0.00"}}]
[{"$nulls":3},"Bopælsland","Antal rejsedage:",null,0,{"$f":"'ERV præmie satser'!J54","v":{"v":53.24464001440001,"d":"53.24"}},{"$f":"'ERV præmie satser'!J60","v":{"v":0,"d":"0.00"}},{"$f":"'ERV præmie satser'!L54","v":{"v":53.24464001440001,"d":"53.24"}},{"$f":"'ERV præmie satser'!L60","v":{"v":0,"d":"0.00"}}]
[]
[null,"Præmie, ekskl. skadeforsikringsafgift til staten",{"$nulls":6},{"$f":"'ERV præmie satser'!J61","v":{"v":1600,"d":"1,600.00"}},null,{"$f":"'ERV præmie satser'!L61","v":{"v":1600,"d":"1,600.00"}}]
[]
[null,"Skadesforsikringsafgift, 1.1 %",{"$nulls":8},{"$f":"(K60+K61)*1.1%","v":{"v":17.6,"d":"17.60"}}]
[null,"***Indtast valgfri tekst ***",null,null,"Procentssats:",null,{"v":0,"d":"0.00%"},{"$nulls":3},{"$f":"G63*(K60+K61)","v":{"v":0,"d":"0.00"}}]
[null,{"$f":"\"Total (\"&B63&\" er ekskl. moms)\"","v":"Total (***Indtast valgfri tekst *** er ekskl. moms)"},{"$nulls":8},{"$f":"SUM(K60:K63)","v":{"v":1617.6,"d":"1,617.60"}}]
[null,"Total",{"$nulls":8},{"$f":"K60+K61+K62","v":{"v":1617.6,"d":"1,617.60"}}]
[]
[]
[]
[null,"Ved spørgsmål venligst kontakt:"]
[]
[{"$nulls":4},"Firmasupport, Mandag-fredag: 08.30-16.00",null,"Tlf: +45 33 27 83 35",null,"E-mail:  ERHVERV@ERV.DK"]
[]
[]
[]
[null,"Hvad omfatter dækningerne"]
[null,"Grunddækning: \nDækker lægebesøg og hospitalsbehandling ved akut sygdom og tilskadekomst, receptpligtig medicin,  sygetransport til nærmest egnede hospital, \nhjemtransport til bopæl eller hospital i bopælsland, hjemsendelse af efterlagt bagage og lægelig fejlbehandling. \nSygeledsagelse og tilkaldelse op til 3 personer. \nUbegrænset dækning til smertestillinde tandbehandling og tandskade som følge af ulykke. Tyggeskade op til DKK 10.000\nUbegrænset krisehjælp til den forsikrede i tilfælde af ulykke, voldtægt, overfald, røveri eller anden traumatisk oplevelse som f.eks. terror, naturkatastrofer, politiske uroligheder m.m. \nTelefonisk krisehjælp til nærmeste familie. \nPsykolog og psykiater efter hjemkomst til bopælsland DKK 15.000.\n"]
[]
[null,"Rejseulykke- invaliditet og dødsfald\nYder erstatning ved invaliditet som følge af ulykke ved varigt mén fra 5%. Dækker desuden erhvervsevnetab, hjælpemidler og tekniske ændringer af f.eks. arbejdsplads eller bopæl.\nGenoptræning og arbejdsgivers ekstraudgifter til transport. Død som følge af ulykke.\n\nDobbelt erstatning  ved rejseulykke - Invaliditet\nSærskilt tilvalg - Ved varigt mén på over 20% ydes dobbelterstatning. Godtgørelsen fordobles i forhold til méngradens svarende procent af forsikringssummen. \n\nRejseliv og sygdomsinvaliditet\nInvaliditet som følge af sygdom ved varigt mén på mindst 5 %. Godtgørelsen fordobles i forhold til méngradens svarende procent af forsikringssummen. Dødsfald som følge af sygdom."]
[]
[null,"Forsinket fremmøde – mistet, forsinket eller aflyst afgang\nDækker nye billetter + indkvartering hvis kunden mister en afgang eller forbindelse pga. uforudsete hændelser på vej til afgang. Hvis transportmidlet er forsinket mere end 3 timer, \naflyst eller overbooket dækkes nye billetter + indkvartering.\nDækning på ud-, rund- eller hjemrejse."]
[]
[null,"Bagageforsinkelse\nDækker udgifter til toiletartikler, tøj eller andre ejendele hvis bagage forsinkes . Ingen karenstid. Dækning på både ud-, rund- og hjemrejse."]
[]
[null,"Vejhjælp\nHvis bilen bryder sammen eller er involveret i sammenstød dækkes bugsering, lejebil, rejseudgifter til offentlig transport og indkvartering."]
[]
[null,"Bagage\nTyveri, beskadigelse eller bortkomst af bagage. Dækkes desuden kontanter, rejsedokumenter, eventuelle udgifter ifm. med politirapport,  samt omstilling af låse \nog/eller erstatning af nøgler til privat bolig eller køretøj."]
[]
[null,"Hjemkald\nBliver en person i nærmeste familie akut alvorlig syg, kommer til skade eller dør, dækkes hjemrejse. Dækkes også hvis det samme sker blandt nære medarbejdere på forsikredes arbejdsplads eller forsikrede ikke kan gennemføre erhvervsrejse pga. en uforudset hændelse på bestemmelsesstedet der umuliggør formålet med erhvervsrejsen."]
[]
[null,"Erstatningsmedarbejder\nDækker hvis den forsikrede skal erstattes af en anden medarbejder pga. akut sygdom, tilskadekomst, dødsfald eller hjemkaldelse. Refusion af ubenyttede rejseudgifter er også dækket. "]
[]
[null,"Tryghedspakken\nTransport til sikker destination og/eller bopælsland ifm. evakuering hvis Udenrigsministeriet eller lokale myndigheder anbefaler at forlade det område forsikrede befinder sig i. Hotelophold, kost lokaltransport, erstatningskøb af tøj og toiletartikler er dækket. \nForlænget ophold ved tilbageholdelse pga. naturkatastrofer, karantæne, terroraktioner, udbrud af krig eller politiske uroligheder. \nEkstraudgifter til tøj, toiletartikler eller anden udgift, hvis adgang til private ejendele ikke er mulig pga. myndighedernes afspærring.\n\nEftersøgning og redning.\nGidselkompensation, dækning ved kidnapning eller kapring DKK 750.000 pr. skadebegivenhed (se fordeling i forsikringsoversigt)"]
[null,"Travel Security Hotline\nTravel Security Hotline er er tilvalg til Tryghedspakken. Servicen Travel Security Hotline giver ubegrænset adgang til telefonisk sikkerhedsrådgivning og assistance, døgnet rundt, året rundt. Sikkerhedsrådgiverne har erfaring fra militær, efterretningstjeneste og politi og er uddannede i at analysere og vurdere sikkerhedsrisici på lokalt såvel som globalt niveau. Det giver jeres medarbejdere de bedste forudsætninger for at kunne færdes sikkert og trygt på erhvervsrejser i hele verden."]
[null,"Læs mere om Travel Security Hotline."]
[]
[null,"Privatansvar\nPrivatansvar, person og tingskade  over for tredjepart – DKK 10 mio. pr. rejse. Dækker også skader på lejer bolig/hotel samt indbo. \nGlobal juridisk assistance samt sikkerhedsstillelse/kaution."]
[]
[null,"Overfald\nPersonskade som følge af overfald DKK 1. mio. pr. skadestilfælde"]
[]
[null,"Selvrisiko - indbo og bilforsikring – gælder kun ved fastbopæl i EU\nVed skader på egen bopæl i bopælslandet eller ved kaskoskader på privatejet/leaset bil som bruges på erhvervsrejsen dækkes selvrisikoen op til DKK 15.000 på egen privattegnet indbo- eller bilforsikring.\n\nSelvrisiko ved leje af motorkøretøj\nDækker selvrisiko i forbindelse med kaskoskade på lejet bil, autocamper, båd, motorcykel, knallert, snescooter eller cykel op til DKK 25.000."]
[]
[null,"Afbestilling\nAfbestilling af både rejse og events såfremt forsikrede ikke kan påbegynde sin erhvervsrejse f.eks. på grund af: Akut sygdom el. dødsfald hos sikrede, dennes nærmeste familie, nær kollega eller den person som er formålet med rejsen. Særlige forhold i virksomheden eller ved sikredes private bopæl. Udenrigsministeriet fraråder al indrejse til bestemmelsessted."]
[]
[null,"Krig-risiko: Såfremt at et land er nævnt på ERVs krigszone liste, skal der tegnes separat krigszone forsikring. Kontakt ERV for tilbud."]
[null,"Klik her for at se aktuel krigs- og risikozoneliste."]
[]
[null,"Bopælsland: Herved forstås rejser ud over 50 km fra hjem/arbejdsplads, medmindre andet er anført på policen."]
[]
[null,"Norden: Grønland, Finland (inkl. Åland), Færøerne, Island, Norge og Sverige"]
[]
[null,"Europa: Albanien, Andorra, Belgien, Bosnien-Herzegovina, Bulgarien, Cypern, Estland, Frankrig, Grækenland, Holland, Belarus mellem Andorra og Belgien., Irland, Italien, Kosovo, Kroatien, Letland, Liechtenstein, Litauen, Luxembourg, Makedonien, Malta, Moldova, Monaco, Montenegro, Polen, Portugal, Rumænien, Rusland (indtil Ural), San Marino, Schweiz, Serbien, Slovakiet, Slovenien, Spanien, Storbritannien, Tjekkiet, Tyrkiet, Tyskland, Ukraine, Ungarn, Vatikanstaten og Østrig"]
[]
[null,"Verden: Lande som ikke er defineret under Norden og Europa\n"]

{"sheet":"Klausuler","index":4,"n_rows":21,"n_cols":4,"rows_kept":21,"hidden":true,"merged":[[5,2,5,3]]}
[]
[]
[]
[]
[]
[null,null,"Klausuler"]
[]
[null,null,"Medrejsende ægtefæller/samlever","Ja"]
[null,null,"Medrejsende børn","Ja"]
[null,null,"Kombinerede Erhvervs- og ferierejser","Ja"]
[]
[null,null,"Bestyrelsesmedlemmer","Ja"]
[null,null,"Inviterede gæster","Ja"]
[null,null,"Eksterne konsulenter","Ja"]
[]
[null,null,"Medforsikrede datterselskaber","Fravalgt"]
[]
[]
[null,null,"Øvrige forhold der skal noteres\nSendes kun med til Europæiske ERV"]
[]
[{"$nulls":3}," "]

{"sheet":"Bruger info","index":5,"n_rows":51,"n_cols":4,"rows_kept":51,"hidden":true,"merged":[[5,2,5,3]]}
[]
[]
[]
[]
[]
[null,null,{"$f":"CONCATENATE(D8,\" \",\"information\")","v":"Special Risk - forsikringsformidling ApS information"}]
[]
[null,null,"Agent:",{"$f":"+'ERV Data'!D14","v":"Special Risk - forsikringsformidling ApS"}]
[null,null,"Agent nummer:","3501601 "]
[null,null,"Kontaktperson:","Kontakt person - Agent"]
[null,null,"Email - kontaktperson:","Email Kontakt person - Agent"]
[null,null,"Tlf - kontaktperson:","Tlf Kontakt person - Agent"]
[null,null,"Agent maximum rabat sats:",{"$f":"+'ERV Data'!D15","v":{"v":0.42,"d":"42%"}}]
[null,null,"Agent minimums præmie sats:",{"$f":"CONCATENATE('ERV Data'!D16,\" \",\"DKK\")","v":"1600 DKK"}]
[null,null,"Agent maximum præmie total:",{"$f":"CONCATENATE('ERV Data'!D17,\" \",\"DKK\")","v":"100000 DKK"}]
[null,null,"Ønsket rabat sats:",{"v":0,"d":"0%"}]
{"$rows_empty":34}
[{"$nulls":3},0]

{"sheet":"Bruger admin","index":6,"n_rows":32,"n_cols":6,"rows_kept":32,"hidden":true,"merged":[[4,1,9,10],[21,5,21,7],[22,5,22,7],[23,5,23,7],[31,5,31,10]]}
[]
[]
[]
[]
[null,"Bruger admin"]
{"$rows_empty":16}
[{"$nulls":5},"Indtast certifikat nummer:"]
[]
[{"$nulls":5},"Certifikat nr"]
{"$rows_empty":7}
[null,null,{"$f":"+'ERV Data'!$D$1","v":"#40503 - Y2022_1.00"},null,null,"© 2022 - Europæiske ERV Denmark - All rights reserved."]

{"sheet":"PDF tilbud","index":7,"n_rows":780,"n_cols":27,"rows_kept":780,"hidden":true,"merged":[[93,8,93,10],[95,10,95,11],[96,10,96,11],[97,10,97,11],[98,10,98,11],[99,10,99,11],[100,10,100,11],[101,10,101,11],[102,10,102,11],[129,2,130,8],[145,2,149,9],[151,2,156,9],[161,2,161,9],[168,9,168,11],[170,9,170,11],[171,9,171,11],[172,9,172,11],[179,7,179,10],[258,9,258,11],[260,9,260,11],[261,9,261,11],[262,9,262,11],[271,1,280,5],[271,7,281,10],[284,9,284,10],[285,1,285,10],[286,1,286,7],[286,8,286,10],[287,1,287,7],[287,8,287,10],[288,1,288,7],[288,8,288,10],[289,1,290,7],[289,8,290,10],[291,1,291,7],[291,8,291,10],[292,1,293,7],[292,8,293,10],[294,1,294,7],[294,8,294,10],[295,1,296,7],[295,8,296,10],[297,1,298,7],[297,8,298,10],[299,1,299,7],[299,8,299,10],[300,1,300,7],[300,8,300,10],[301,1,301,7],[301,8,301,10],[302,1,302,7],[302,8,302,10],[303,1,303,7],[303,8,303,10],[304,1,304,7],[304,8,304,10],[305,1,305,7],[305,8,305,10],[306,1,306,10],[307,1,308,7],[307,8,308,10],[309,8,309,10],[310,1,310,10],[311,1,311,7],[311,8,311,10],[312,1,312,7],[312,8,312,10],[313,1,313,7],[313,8,313,10],[314,1,316,7],[314,8,316,10],[317,1,317,10],[318,1,322,7],[318,8,322,10],[323,1,327,7],[323,8,327,10],[338,1,340,10],[342,9,342,11],[344,9,344,11],[345,9,345,11],[346,9,346,11],[356,9,356,10],[357,1,357,10],[358,1,359,7],[358,8,359,10],[360,1,361,7],[360,8,361,10],[362,1,364,7],[362,8,364,10],[365,1,366,7],[365,8,366,10],[367,1,368,7],[367,8,368,10],[369,1,370,7],[369,8,370,10],[371,1,371,7],[371,8,371,10],[372,1,372,7],[372,8,372,10],[373,1,374,7],[373,8,374,10],[375,1,375,7],[375,8,375,10],[376,1,378,7],[376,8,378,10],[379,1,379,10],[380,1,381,7],[380,8,381,10],[382,1,382,7],[382,8,382,10],[383,1,383,10],[384,1,386,7],[384,8,386,10],[387,1,387,7],[387,8,387,10],[388,1,388,7],[388,8,388,10],[389,1,389,7],[389,8,389,10],[390,1,390,10],[391,1,392,7],[391,8,392,10],[393,1,393,10],[394,1,395,7],[394,8,395,10],[396,1,396,7],[396,8,396,10],[397,1,397,7],[397,8,397,10],[398,1,398,7],[398,8,398,10],[399,1,399,10],[400,1,401,7],[400,8,401,10],[402,1,402,7],[402,8,402,10],[403,1,403,7],[403,8,403,10],[404,1,404,7],[404,8,404,10],[405,1,405,7],[405,8,405,10],[406,1,406,10],[407,1,408,7],[407,8,408,10],[409,1,411,7],[409,8,411,10],[418,1,420,10],[422,9,422,11],[424,9,424,11],[425,9,425,11],[426,9,426,11],[436,9,436,10],[437,1,437,10],[438,1,439,7],[438,8,439,10],[440,1,440,7],[440,8,440,10],[441,1,441,10],[442,1,443,7],[442,8,443,10],[444,1,444,7],[444,8,444,10],[445,1,445,7],[445,8,445,10],[446,1,447,7],[446,8,447,10],[448,1,449,7],[448,8,449,10],[450,1,450,7],[450,8,450,10],[451,1,452,7],[451,8,452,10],[453,1,456,7],[453,8,456,10],[457,1,461,7],[457,8,461,10],[462,1,465,7],[462,8,465,10],[466,1,466,10],[467,1,468,7],[467,8,468,10],[469,1,470,7],[469,8,470,10],[471,1,471,7],[471,8,471,10],[472,1,472,10],[473,1,473,7],[473,8,473,10],[474,1,474,10],[475,1,476,7],[475,8,476,10],[477,1,478,7],[477,8,478,10],[479,1,479,10],[480,1,481,7],[480,8,481,10],[482,1,482,10],[483,1,489,7],[483,8,489,10],[497,1,499,10],[501,9,501,11],[503,9,503,11],[504,9,504,11],[505,9,505,11],[518,3,526,5],[518,8,526,10],[531,3,539,5],[531,8,539,10],[544,3,552,5],[544,8,552,10],[544,14,552,16],[554,16,562,18],[557,3,565,5],[557,8,565,10],[570,3,579,5],[570,8,579,10],[570,15,579,17],[595,9,595,11],[597,9,597,11],[598,9,598,11],[599,9,599,11],[612,3,620,5],[612,8,620,10],[625,3,633,5],[625,8,633,10],[638,3,646,5],[638,8,646,10],[651,3,659,5],[651,8,659,10],[664,3,673,5],[664,8,673,10],[682,9,682,11],[684,9,684,11],[685,9,685,11],[686,9,686,11],[699,1,699,3],[775,9,775,11],[777,9,777,11],[778,9,778,11],[779,9,779,11]]}
[{"$nulls":26},{"$f":"'Præmie beregning'!B41","v":"Fravalgt"}]
[{"$nulls":26},"Fravalgt"]
{"$rows_empty":7}
[null,"Tilbud til"]
[null,{"$f":"'Info om virksomhed'!D8 & \"\"","v":"Indtast virksomhedens navn"}]
{"$rows_empty":79}
[null,"Tilbud"]
[]
[]
[null,"Forsikringstager",{"$nulls":6},"40503, CTI"]
[]
[null,{"$f":"'Info om virksomhed'!D8","v":"Indtast virksomhedens navn"},{"$nulls":6},"Ikrafttrædelsesdato",null,{"$f":"'Info om virksomhed'!D19","v":"dd-mm-år"}]
[null,{"$f":"'Info om virksomhed'!D9","v":"Indtast adresse"},{"$nulls":6},"Hovedforfaldsdato",null,{"$f":"'Info om virksomhed'!D20","v":"mm-år"}]
[null,{"$f":"CONCATENATE('Info om virksomhed'!D10,\" \",'Info om virksomhed'!D11)","v":"Indtast postnr Indtast by"},{"$nulls":6},"Forsikringsperiode",null,"1 år"]
[null,{"$f":"+'Info om virksomhed'!D12","v":"Indtast primært bopælsland"},{"$nulls":6},"Antal betalingsrater pr. år",null,{"$f":"+'Info om virksomhed'!D22","v":1}]
[{"$nulls":8},"Forsikringsbetingelser",null,"40502"]
[{"$nulls":8},"Agenturnr.",null,{"$f":"'Bruger info'!D9","v":"3501601 "}]
[{"$nulls":8},"Valuta",null,"DKK"]
[{"$nulls":8},"Udstedelsesdato",null,{"$f":"TODAY()","v":"2022-11-29"}]
[]
[]
[]
[]
[]
[null,"Særlige betingelser og klausuler:"]
[]
[null,null,"Klausuler:"]
[null,null,"Medrejsende ægtefæller/samlever",{"$nulls":6},{"$f":"+Klausuler!D8","v":"Ja"}]
[null,null,"Medrejsende børn",{"$nulls":6},{"$f":"+Klausuler!D9","v":"Ja"}]
[null,null,"Kombinerede erhvervs- og ferierejser",{"$nulls":6},{"$f":"+Klausuler!D10","v":"Ja"}]
[null,null,"Bestyrelsesmedlemmer",{"$nulls":6},{"$f":"+Klausuler!D12","v":"Ja"}]
[null,null,"Inviterede gæster",{"$nulls":6},{"$f":"+Klausuler!D13","v":"Ja"}]
[null,null,"Eksterne konsulenter",{"$nulls":6},{"$f":"+Klausuler!D14","v":"Ja"}]
[null,null,"Medforsikrede datterselskaber",{"$nulls":6},{"$f":"+Klausuler!D16","v":"Fravalgt"}]
[]
[]
[]
[]
[]
[null,null,"Forsikringen omfatter de hos forsikringstageren medarbejdende ejere og medejere samt de hos"]
[null,null,"forsikringstageren ansatte personer under erhvervsrejser over alt i verden. Erhvervsrejser i bopælslandet er"]
[null,null,"dækket, såfremt dette er anført særskilt."]
[]
[null,null,"Forsikringstageren fører regnskab med rejseaktiviteten, som grundlag for præmiens beregning."]
[]
[null,null,{"$f":"CONCATENATE(IF(OR($J$112=\"Ja\",$J$113=\"Ja\",$J$114=\"Ja\",$J$115=\"Ja\",$J$116=\"Ja\",$J$117=\"Ja\"),\"Policen er udvidet til at omfatte: \",\" \"),IF(J112=\"Ja\",LOWER(CONCATENATE(C112,\", \",)),\"\"),IF(J113=\"Ja\",LOWER(CONCATENATE(C113,\", \",)),\"\"),IF(J114=\"Ja\",LOWER(CONCATENATE(C114,\", \",)),\"\"),IF(J115=\"Ja\",LOWER(CONCATENATE(C115,\", \",)),\"\"),IF(J116=\"Ja\",LOWER(CONCATENATE(C116,\", \",)),\"\"),IF(J117=\"Ja\",LOWER(CONCATENATE(C117,\", \",)),\"\"))","v":"Policen er udvidet til at omfatte: medrejsende ægtefæller/samlever, medrejsende børn, kombinerede erhvervs- og ferierejser, bestyrelsesmedlemmer, inviterede gæster, eksterne konsulenter, "}]
[]
[]
[]
[]
[null,null,"Forsikringen dækker tillige under rejser i områder som er defineret på Europæiskes krigs- og risikoliste som"]
[null,null,"risikozoner (krigszoner undtaget)."]
[]
[null,null,{"$f":"CONCATENATE(\"Minimumspræmien pr. forsikringsår andrager kr. \",TEXT('ERV Data'!D16,\"#.##0\"),\".\")","v":"Minimumspræmien pr. forsikringsår andrager kr. 1.600."}]
[]
[null,null,"De bestilte BTI-kort sendes særskilt via Europæiskes kortleverandør."]
[]
[null,null,"Præmien er baseret på 2023 præmier og indekseres pr. 1. januar 2024."]
[]
[null,null,"Præmien er inkl. specialrabat."]
[]
[null,null,"Europæiske ERV gør opmærksom på at forsikringsagenten modtager provision/vederlag som følge af forsikringsformidlingen. Ved anmodning er det muligt at få oplyst provisionens/vederlagets størrelse. Enhver ændring af denne aftale skal bekræftes af Europæiske ERV senest 1 måned før policens hovedforfald. I et sådant tilfælde forbeholder Europæiske ERV sig ret til, at ændre præmien ved førstkommende hovedforfaldsdato."]
{"$rows_empty":15}
[null,null,"Såfremt et land er nævnt på ERVs krigszoneliste, skal der tegnes separat krigszone forsikring."]
[null,null,"Se mere på:","erv.dk","Venligst kontakt ERV for tilbud."]
[]
[null,null,"Produktinformation om vores forsikringer:",null,null,"Link"]
[]
[]
[]
[null,{"$f":"+'ERV Data'!$D$1","v":"#40503 - Y2022_1.00"},{"$nulls":7},{"$f":"\"Tilbud side \" & L170 & \"/\" & SUM(L170+L260+L344+L424+L503+L597+L684+L777)","v":"Tilbud side 1/7"}]
[{"$nulls":11},1]
[null,"Europæiske ERV",{"$nulls":7},"www.erv.dk"]
[null,"Frederiksberg Allé 3, DK-1790 København V",{"$nulls":7},"Telefon +45 33 25 25 25"]
[null,"CVR 62940514",{"$nulls":7},"Email erhverv@erv.dk"]
[]
[]
[]
[]
[null,"Tilbud"]
[]
[{"$nulls":7},"Præmie pr. person pr. dag"]
[]
[null,"Dækningsoversigt",{"$nulls":3},"Forsikringssum",null,"Norden","Europa","Verden","Bopælsland"]
[]
[null,"Obligatorisk grunddækning"]
[null,"Norden",{"$nulls":3},{"$f":"'Præmie beregning'!G11","v":"Ubegrænset"},null,{"$f":"'Præmie beregning'!J11","v":11.72},"-","-","-"]
[null,"Europa",{"$nulls":3},{"$f":"'Præmie beregning'!G12","v":"Ubegrænset"},null,"-",{"$f":"'Præmie beregning'!J12","v":{"v":30.5,"d":"30.50"}},"-","-"]
[null,"Verden",{"$nulls":3},{"$f":"'Præmie beregning'!G13","v":"Ubegrænset"},null,"-","-",{"$f":"'Præmie beregning'!J13","v":50.58},"-"]
[]
[]
[null,"Tillægsdækning"]
[null,"Rejseulykke",{"$nulls":5},{"$f":"'Præmie beregning'!J17","v":{"v":8.049999999999999,"d":"8.05"}},{"$f":"'Præmie beregning'!J17","v":{"v":8.049999999999999,"d":"8.05"}},{"$f":"'Præmie beregning'!J17","v":{"v":8.049999999999999,"d":"8.05"}},{"$f":"'Præmie beregning'!J17","v":{"v":8.049999999999999,"d":"8.05"}}]
[null,null,"Ulykke - Død",null,null,{"$f":"'Præmie beregning'!G16","v":{"v":500000,"d":"500,000"}}]
[null,null,"Ulykke - Invaliditet",null,null,{"$f":"'Præmie beregning'!G17","v":{"v":500000,"d":"500,000"}}]
[null,null,"Dobbelt erstatning ",null,null,{"$f":"'Præmie beregning'!B18","v":"Ja"}]
[]
[null,"Rejseliv og sygdomsinvaliditet",{"$nulls":5},{"$f":"'Præmie beregning'!J22","v":{"v":8.5,"d":"8.50"}},{"$f":"'Præmie beregning'!J22","v":{"v":8.5,"d":"8.50"}},{"$f":"'Præmie beregning'!J22","v":{"v":8.5,"d":"8.50"}},{"$f":"'Præmie beregning'!J22","v":{"v":8.5,"d":"8.50"}}]
[null,null,"Livsforsikring Død",null,null,{"$f":"'Præmie beregning'!G21","v":{"v":500000,"d":"500,000"}}]
[null,null,"Sygdomsinvaliditet",null,null,{"$f":"'Præmie beregning'!G22","v":{"v":500000,"d":"500,000"}}]
[]
[null,"Forsinket fremmøde - mistet, forsinket eller aflyst afgang",{"$nulls":5},{"$f":"'Præmie beregning'!J24","v":{"v":3.210636,"d":"3.21"}},{"$f":"'Præmie beregning'!J24","v":{"v":3.210636,"d":"3.21"}},{"$f":"'Præmie beregning'!J24","v":{"v":3.210636,"d":"3.21"}},{"$f":"'Præmie beregning'!J24","v":{"v":3.210636,"d":"3.21"}}]
[]
[null,"Bagageforsinkelse",{"$nulls":3},{"$f":"'Præmie beregning'!G27","v":{"v":5000,"d":"5,000"}},null,{"$f":"'Præmie beregning'!J27","v":{"v":11.596458,"d":"11.60"}},{"$f":"'Præmie beregning'!J27","v":{"v":11.596458,"d":"11.60"}},{"$f":"'Præmie beregning'!J27","v":{"v":11.596458,"d":"11.60"}},{"$f":"'Præmie beregning'!J27","v":{"v":11.596458,"d":"11.60"}}]
[]
[]
[null,"Vejhjælp",{"$nulls":5},{"$f":"'Præmie beregning'!J29","v":{"v":0.5613,"d":"0.56"}},{"$f":"'Præmie beregning'!J29","v":{"v":0.5613,"d":"0.56"}},{"$f":"'Præmie beregning'!J29","v":{"v":0.5613,"d":"0.56"}},{"$f":"'Præmie beregning'!J29","v":{"v":0.5613,"d":"0.56"}}]
[]
[null,"Bagage",{"$nulls":5},{"$f":"'Præmie beregning'!J33","v":{"v":5.4863600144,"d":"5.49"}},{"$f":"'Præmie beregning'!J33","v":{"v":5.4863600144,"d":"5.49"}},{"$f":"'Præmie beregning'!J33","v":{"v":5.4863600144,"d":"5.49"}},{"$f":"'Præmie beregning'!J33","v":{"v":5.4863600144,"d":"5.49"}}]
[null,null,"Bagage",null,null,{"$f":"'Præmie beregning'!G32","v":{"v":30000,"d":"30,000"}}]
[null,null,"Kontanter",null,null,{"$f":"'Præmie beregning'!G33","v":{"v":5000,"d":"5,000"}}]
[]
[null,"Hjemkald",{"$nulls":5},{"$f":"'Præmie beregning'!J35","v":{"v":4.546530000000001,"d":"4.55"}},{"$f":"'Præmie beregning'!J35","v":{"v":4.546530000000001,"d":"4.55"}},{"$f":"'Præmie beregning'!J35","v":{"v":4.546530000000001,"d":"4.55"}},"-"]
[]
[null,"Erstatningsmedarbejder",{"$nulls":5},{"$f":"'Præmie beregning'!J37","v":{"v":0.426588,"d":"0.43"}},{"$f":"'Præmie beregning'!J37","v":{"v":0.426588,"d":"0.43"}},{"$f":"'Præmie beregning'!J37","v":{"v":0.426588,"d":"0.43"}},"-"]
[]
[null,{"$f":"IF('Præmie beregning'!B41=\"Ja\",\"Udvidet tryghedspakke\",\"Tryghedspakke\")","v":"Tryghedspakke"},{"$nulls":5},{"$f":"IF('Præmie beregning'!B41=\"Ja\",SUM('ERV præmie satser'!L35+'ERV præmie satser'!L71),'ERV præmie satser'!L35)","v":{"v":1.167504,"d":"1.17"}},{"$f":"IF('Præmie beregning'!B41=\"Ja\",SUM('ERV præmie satser'!L35+'ERV præmie satser'!L72),'ERV præmie satser'!L35)","v":{"v":1.167504,"d":"1.17"}},{"$f":"IF('Præmie beregning'!B41=\"Ja\",SUM('ERV præmie satser'!L35+'ERV præmie satser'!L73),'ERV præmie satser'!L35)","v":{"v":1.167504,"d":"1.17"}},{"$f":"IF('Præmie beregning'!B41=\"Ja\",SUM('ERV præmie satser'!L35+'ERV præmie satser'!L70),'ERV præmie satser'!L35)","v":{"v":1.167504,"d":"1.17"}}]
[]
[null,"Privatansvar og global juridisk assistance",{"$nulls":5},{"$f":"'Præmie beregning'!J43","v":{"v":0.684786,"d":"0.68"}},{"$f":"'Præmie beregning'!J43","v":{"v":0.684786,"d":"0.68"}},{"$f":"'Præmie beregning'!J43","v":{"v":0.684786,"d":"0.68"}},{"$f":"'Præmie beregning'!J43","v":{"v":0.684786,"d":"0.68"}}]
[]
[null,"Overfald",{"$nulls":5},{"$f":"'Præmie beregning'!J45","v":{"v":1.1226,"d":"1.12"}},{"$f":"'Præmie beregning'!J45","v":{"v":1.1226,"d":"1.12"}},{"$f":"'Præmie beregning'!J45","v":{"v":1.1226,"d":"1.12"}},{"$f":"'Præmie beregning'!J45","v":{"v":1.1226,"d":"1.12"}}]
[]
[null,"Selvrisiko indbo- og bilforsikring – gælder kun ved fast bopæl i EU.",{"$nulls":5},{"$f":"'Præmie beregning'!J47","v":{"v":1.5716400000000001,"d":"1.57"}},{"$f":"'Præmie beregning'!J47","v":{"v":1.5716400000000001,"d":"1.57"}},{"$f":"'Præmie beregning'!J47","v":{"v":1.5716400000000001,"d":"1.57"}},{"$f":"'Præmie beregning'!J47","v":{"v":1.5716400000000001,"d":"1.57"}}]
[]
[null,"Selvrisiko ved leje af motorkøretøj",{"$nulls":5},{"$f":"'Præmie beregning'!J49","v":{"v":0.5613,"d":"0.56"}},{"$f":"'Præmie beregning'!J49","v":{"v":0.5613,"d":"0.56"}},{"$f":"'Præmie beregning'!J49","v":{"v":0.5613,"d":"0.56"}},{"$f":"'Præmie beregning'!J49","v":{"v":0.5613,"d":"0.56"}}]
[]
[null,"Afbestilling",{"$nulls":3},{"$f":"'Præmie beregning'!G52","v":{"v":5000,"d":"5,000"}},null,{"$f":"'Præmie beregning'!J52","v":{"v":10.732056000000002,"d":"10.73"}},{"$f":"'Præmie beregning'!J52","v":{"v":10.732056000000002,"d":"10.73"}},{"$f":"'Præmie beregning'!J52","v":{"v":10.732056000000002,"d":"10.73"}},{"$f":"'Præmie beregning'!J52","v":{"v":10.732056000000002,"d":"10.73"}}]
[]
[null,"Præmie pr. person pr. dag*:",{"$nulls":5},{"$f":"'Præmie beregning'!J55","v":{"v":69.93775801440002,"d":"69.94"}},{"$f":"'Præmie beregning'!J56","v":{"v":88.71775801439999,"d":"88.72"}},{"$f":"'Præmie beregning'!J57","v":{"v":108.7977580144,"d":"108.80"}},{"$f":"'Præmie beregning'!J58","v":{"v":53.24464001440001,"d":"53.24"}}]
[null,"Budgetdage:",{"$nulls":5},{"$f":"'Præmie beregning'!G55","v":0},{"$f":"'Præmie beregning'!G56","v":0},{"$f":"'Præmie beregning'!G57","v":0},{"$f":"'Præmie beregning'!G58","v":0}]
[]
[null,"Præmie for alle dage*:",{"$nulls":5},{"$f":"'Præmie beregning'!K55","v":{"v":0,"d":"0.00"}},{"$f":"'Præmie beregning'!K56","v":{"v":0,"d":"0.00"}},{"$f":"'Præmie beregning'!K57","v":{"v":0,"d":"0.00"}},{"$f":"'Præmie beregning'!K58","v":{"v":0,"d":"0.00"}}]
[]
[]
[null,{"$f":"'Præmie beregning'!B60","v":"Præmie, ekskl. skadeforsikringsafgift til staten"},{"$nulls":8},{"$f":"'Præmie beregning'!K60","v":{"v":1600,"d":"1,600.00"}}]
[]
[null,{"$f":"'Præmie beregning'!B62","v":"Skadesforsikringsafgift, 1.1 %"},{"$nulls":8},{"$f":"'Præmie beregning'!K62","v":{"v":17.6,"d":"17.60"}}]
[null,{"$f":"'Præmie beregning'!B63","v":"***Indtast valgfri tekst ***"},{"$nulls":8},{"$f":"IF('Præmie beregning'!K63=0,\"\",'Præmie beregning'!K63)","v":""}]
[null,{"$f":"'Præmie beregning'!B64","v":"Total (***Indtast valgfri tekst *** er ekskl. moms)"},{"$nulls":8},{"$f":"'Præmie beregning'!K64","v":{"v":1617.6,"d":"1,617.60"}}]
[null,{"$f":"'Præmie beregning'!B65","v":"Total"},{"$nulls":8},{"$f":"'Præmie beregning'!K65","v":{"v":1617.6,"d":"1,617.60"}}]
[]
[]
[]
[]
[]
[null,"- = Dækning er ikke omfattet af policen"]
[]
[null,"* = Den anførte præmie kan være udregnet med flere end de to angivet decimaler"]
[]
[null,"Skadeforsikringsafgiften berigtiges efter lov om afgift af skadesforsikring."]
{"$rows_empty":10}
[null,{"$f":"+'ERV Data'!$D$1","v":"#40503 - Y2022_1.00"},{"$nulls":7},{"$f":"\"Tilbud side \" & SUM(L170+L260) & \"/\" & SUM(L170+L260+L344+L424+L503+L597+L684+L777)","v":"Tilbud side 2/7"}]
[{"$nulls":11},1]
[null,"Europæiske ERV",{"$nulls":7},"www.erv.dk"]
[null,"Frederiksberg Allé 3, DK-1790 København V",{"$nulls":7},"Telefon +45 33 25 25 25"]
[null,"CVR 62940514",{"$nulls":7},"Email erhverv@erv.dk"]
[]
[]
[]
[]
[null,"Forsikringsoversigt"]
[null,"Erhvervsrejseforsikring"]
[null,"Gældende fra den 1. maj 2019 - forsikringsbetingelser 40502"]
[]
[null,"For hvem og hvornår gælder forsikringen?\nForsikringen kan tegnes af en virksomhed eller forening indenfor EU/EØS og gælder for ansatte der rejser for forsikringstagers regning og som i bopælslandet er berettiget til ydelser i henhold til gældende lov inden for offentlig sygesikring eller privattegnet sygeforsikring.\n\nForsikringen gælder på erhvervsrejser, men kan udvides til at omfatte ferierejser.",{"$nulls":5},"Forsikringen dækker rejser i Norden, Europa eller Verden.\n\nDækning ”Afbestilling” dækker, hvis tilvalgt, fra bestilling af erhvervsrejsen og indtil rejsen påbegyndes.\n\nForsikringsoversigten er kun en kortfattet oversigt over forsikringen. \n\nDe fuldstændige forsikringsbetingelser kan du se på www.erv.dk. Hver overskrift henviser til hvilket punkt i betingelserne hvor det er muligt at finde den fulde forklaring til dækningen."]
{"$rows_empty":10}
[null,"Oversigt over forsikringsbeløb pr. person og skade (DKK)"]
[]
[null,"Obligatorisk Grunddækning",{"$nulls":7},"Forsikringssum"]
[null,"AKUT SYGDOM OG TILSKADEKOMST STK. 1"]
[null,"Behandling for akut sygdom eller tilskadekomst hos læge, speciallæge el. skadestue",{"$nulls":6},"Rimelige og nødvendige udgifter"]
[null,"Hospitalsindlæggelse, kost og tilhørende hospitalsydelser",{"$nulls":6},"Rimelige og nødvendige udgifter"]
[null,"Lægeordineret medicin",{"$nulls":6},"Rimelige og nødvendige udgifter"]
[null,"Sygetransport samt evt. overflytning til nærmeste egnede behandlingssted eller ved behandlingssvigt",{"$nulls":6},"Rimelige og nødvendige udgifter"]
[]
[null,"Indhentning af fastlagte rejserute, efter endt behandling",{"$nulls":6},"Rimelige og nødvendige udgifter"]
[null,"Diverse udgifter herunder telefonopkald til Europæiske ERV, aviser, bøger,\nblade og adgang til internettet ved hospitalsindlæggelse, som varer ud over 24 timer",{"$nulls":6},"600 pr. påbegyndt uge"]
[]
[null,"Akut opståede graviditetskomplikationer indtil uge 36 (35+6) inkl. fødsel og behandling af barn",{"$nulls":6},"Rimelige og nødvendige udgifter"]
[null,"Psykolog eller psykiater efter hjemkomst til bopælsland\nKrisehjælp/krispsykolog under rejsen – se stk. 2",{"$nulls":6},"15.000 pr. skadetilfælde"]
[]
[null,"Udgifter til lokaltransport samt hotelophold og fortæring ved ambulant behandling\neller efter endt behandling og indtil hjemrejse kan finde sted.",{"$nulls":6},"2.000 pr. dag"]
[]
[null,"Kompensation ved sygemelding, ved min. 30 dage og max. 6 mdr. sygemelding.",{"$nulls":6},"2.000 pr. måned"]
[null,"Smertestillende tandbehandling under rejsen",{"$nulls":6},"Rimelige og nødvendige udgifter"]
[null,"Tandskade som følge af ulykkestilfælde",{"$nulls":6},"Rimelige og nødvendige udgifter"]
[null,"Tyggeskade",{"$nulls":6},"10.000 pr. rejse"]
[null,"Fysioterapi, kiropraktik, ergoterapi, osteopati, akupunktur",{"$nulls":6},"10.000 pr. rejse"]
[null,"Lægelig fejlbehandling",{"$nulls":6},"1.000.000 pr. rejse"]
[null,"Europæiske ERV coaching line – professionel telefonisk rådgivning 24/7",{"$nulls":6},"Rimelige og nødvendige udgifter"]
[null,"KRISEHJÆLP STK. 2"]
[null,"Krisehjælp/krisepsykolog til forsikrede ifm. ulykker, voldtægt, overfald, røveri eller anden traumatisk oplevelse fx naturkatastrofer, terroraktioner, politiske uroligheder el.lign",{"$nulls":6},"Rimelige og nødvendige udgifter","Rimelige og Nødvendige udgifter"]
[]
[null,"Krisehjælp/krisepsykolog til nært familiemedlem – telefonisk kriseberedskab",{"$nulls":6},"Rimelige og nødvendige udgifter"]
[null,"HJEMTRANSPORT STK. 3"]
[null,"Hjemtransport til bopæl eller hospital i bopælsland",{"$nulls":6},"Rimelige og nødvendige udgifter"]
[null,"Hjemsendelse af efterladt bagage, som følge af hjemtransport",{"$nulls":6},"Rimelige og nødvendige udgifter","Rimelige og Nødvendige udgifter"]
[null,"Hjemtransport i tilfælde af dødsfald inkl. udgifter pålagt ved lov til kiste, balsamering mv.",{"$nulls":6},"Rimelige og nødvendige udgifter","Rimelige og Nødvendige udgifter"]
[null,"Begravelsesudgifter i udlandet",{"$nulls":6},"Rimelige og nødvendige udgifter, dog max. svarende til omkostninger ved hjemtransport af kiste."]
[]
[]
[null,"LEDSAGELSE OG TILKALDELSE STK. 4"]
[null,"Ledsagelse:\nDækker op til 3 ledsagere, hvis du er hospitalsindlagt, rammes af livstruende sygdom, afgår ved døden eller skal hjemtransporteres.",{"$nulls":6},"Rejseomkostninger:\nRimelige og nødvendige udgifter\nIndkvartering, kost og lokal transport:\n2.000 pr. dag pr. ledsager."]
[]
[]
[]
[]
[null,"Tilkaldelse:\nDækker op til 3 personer, hvis du er indlagt i mindst 3 dage eller afgår ved døden.",{"$nulls":6},"Rejseomkostninger:\nRimelige og nødvendige udgifter\nIndkvartering, kost og lokal transport:\n2.000 pr. dag pr. ledsager.","Rejseomkostninger:\nRimelige og nødvendige udgifter\nIndkvartering, kost og lokal transport:\n2.000 pr. dag pr. ledsager."]
{"$rows_empty":14}
[null,"Som udgangspunkt, når der i betingelserne står ”rimelige og nødvendige udgifter”, er summen ubegrænset. Det er Europæiske ERVs skadesafdeling der vurderer om udgifterne er rimelige og nødvendige samt sædvanlige for typen af behandling/skade.\nForsikringen indeholder begrænsninger og undtagelser angående omfang og erstatningsbeløb. Det er dit ansvar at sætte dig ind i disse."]
[]
[]
[]
[null,{"$f":"+'ERV Data'!$D$1","v":"#40503 - Y2022_1.00"},{"$nulls":7},{"$f":"\"Tilbud side \" & SUM(L170+L260+L344) & \"/\" & SUM(L170+L260+L344+L424+L503+L597+L684+L777)","v":"Tilbud side 3/7"}]
[{"$nulls":11},1]
[null,"Europæiske ERV",{"$nulls":7},"www.erv.dk"]
[null,"Frederiksberg Allé 3, DK-1790 København V",{"$nulls":7},"Telefon +45 33 25 25 25"]
[null,"CVR 62940514",{"$nulls":7},"Email erhverv@erv.dk"]
[]
[]
[]
[]
[null,"Forsikringsoversigt"]
[null,"Erhvervsrejseforsikring"]
[]
[null,"Oversigt over forsikringsbeløb pr. person og skade (DKK)"]
[]
[null,"TILLÆGSDÆKNING",{"$nulls":7},"Forsikringssum"]
[null,"REJSEULYKKE – INVALIDITET OG DØDSFALD STK. 5"]
[null,"Invaliditet som følge af ulykke, ved varigt mén på min. 5%\nGodtgørelse udgør den til méngraden svarende procent af forsikringssummen",{"$nulls":6},"Se forsikringspolice"]
[]
[null,"Straksudbetaling ved tilskadekomst, ved ulykkestilfælde jf. skema\ni forsikringsbetingelser 5.1.A.2.",{"$nulls":6},"Se forsikringspolice"]
[]
[null,"Erhvervsevnetab, ved varigt nedsættelse af arbejdsevne",{"$nulls":6},"Hvis erhvervsevnetab udgør 15% har du ret til 25% af invaliditetssummen der er udbetalt."]
[]
[]
[null,"Invaliditet ved trope og øjensygdomme\nGodtgørelse udgør den til méngraden svarende procent af forsikringssummen",{"$nulls":6},"Se forsikringspolice"]
[]
[null,"Arbejdsgiverens ekstraudgifter til transport mellem hjem og arbejde, som følge\naf ulykkestilfælde, hvor du ikke kan anvende din normale transportform.",{"$nulls":6},"10.000 pr. skadestilfælde"]
[]
[null,"Hjælpemidler ved invaliditet, for at lindre følgerne efter ulykkestilfældet",{"$nulls":6},"Op til 3 år, \nmax. 50.000 pr. skadestilfælde"]
[]
[null,"Tekniske ændringer af nærmiljø herunder ændringer af arbejdsplads, bopæl og private bil",{"$nulls":6},"60.000 pr. skadestilfælde"]
[null,"Genoptræning og omskoling som følge af ulykkestilfælde",{"$nulls":6},"60.000 pr. skadestilfælde"]
[null,"Koma som følge af et ulykkestilfælde",{"$nulls":6},"5.000 pr. uge,\nmax. 100.000 pr. skadestilfælde"]
[]
[null,"Død som følge af ulykke",{"$nulls":6},"Se forsikringspolice"]
[null,"Dobbelterstatning (særskilt tilvalg)\nInvaliditet som følge af ulykke, ved varigt mén på over 20% ydes dobbelterstatning\nGodtgørelsen fordobles i forhold til méngradens svarende procent af forsikringssummen",{"$nulls":6},"Se forsikringspolice"]
[]
[]
[null,"REJSELIV OG SYGDOMSINVALIDITET STK. 6"]
[null,"Invaliditet som følge af sygdom, ved varigt mén på mindst 5%\nGodtgørelsen fordobles i forhold til méngradens svarende procent af forsikringssummen",{"$nulls":6},"Se forsikringspolice"]
[]
[null,"Godtgørelse ved dødsfald, som følge af sygdom",{"$nulls":6},"Se forsikringspolice"]
[null,"FORSINKET FREMMØDE – MISTET, FORSINKET ELLER AFLYST AFGANG STK. 7"]
[null,"Mistet afgang eller mistet forbindelse, som følge af forsinkelse på vej til afgangssted eller undervejs på rejsen, på grund af uforudsete hændelser. Dækker både ved udrejse, rundrejse og hjemrejse",{"$nulls":6},"Rimelige og nødvendige udgifter"]
[]
[]
[null,"Nødvendig indkvartering, måltider, lokal transport, toiletartikler og tøj",{"$nulls":6},"2.000 pr. dag"]
[null,"Forsinket, aflyst eller overbooket transportmiddel. Ved forsinkelse dog min. 3 timer",{"$nulls":6},"Rimelige og nødvendige udgifter"]
[null,"Nødvendig Indkvartering, måltider, lokal transport, toiletartikler og tøj",{"$nulls":6},"2.000 pr. dag"]
[null,"BAGAGEFORSINKELSE STK. 8"]
[null,"Dækker udgifter til toiletartikler, tøj eller andre ejendele, hvis bagage forsinkes i forhold til forventet ankomst",{"$nulls":6},"Sum ved udrejse: Se forsikringspolice.\nSum ved hjemrejse: 2.000"]
[]
[null,"VEJHJÆLP STK. 9"]
[null,"Vejhjælp el. bugsering, hvis bilen bryder sammen, er impliceret i sammenstød eller kører af vejen, og rejsen ikke kan fortsættes.",{"$nulls":6},"1.500 pr. skadestilfælde"]
[]
[null,"Lejebil",{"$nulls":6},"1.000 pr. dag i max. 3 dage"]
[null,"Rejseudgifter til offentlig transport",{"$nulls":6},"2.000, max 6.000 pr. gruppe"]
[null,"Indkvartering og måltider i op til 2 dage",{"$nulls":6},"1.000 pr. dag, max 6.000 pr. dag pr. gruppe"]
[null,"BAGAGE STK. 10"]
[null,"Tyveri, beskadigelse og bortkomst af bagage. Dækker erhvervsmæssige og personlige ejendele inkl. lejede, lånte genstande og gaver",{"$nulls":6},"Se forsikringspolice"]
[]
[null,"Kontanter",{"$nulls":6},"Se forsikringspolice"]
[null,"Rejsedokumenter",{"$nulls":6},"30.000 pr. skade"]
[null,"Udgifter ifm. udarbejdelse af polit rapport, spærring af konto eller kreditkort",{"$nulls":6},"5.000 pr. skade"]
[null,"Omstilling af låse og/eller erstatning af nøgler til privat bolig og/eller køretøj",{"$nulls":6},"10.000 pr. skade"]
[null,"HJEMKALD STK. 11"]
[null,"Privat hjemkaldelse, ved akut sygdom, tilskadekomst, dødsfald i nærmeste familie eller alvorlig skade på privat bopæl",{"$nulls":6},"Rimelige og nødvendige udgifter"]
[]
[null,"Erhvervsbetinget hjemkaldelse, ved akut sygdom eller tilskadekomst blandt nære medarbejdere. Alvorlig skade indtruffet på arbejdsplads. Pludselig og uforudset hændelse på bestemmelsesstedet der umuliggør formålet med erhvervsrejsen.",{"$nulls":6},"Rimelige og nødvendige udgifter"]
{"$rows_empty":8}
[null,"Som udgangspunkt, når der i betingelserne står ”rimelige og nødvendige udgifter”, er summen ubegrænset. Det er Europæiske ERVs skadesafdeling der vurderer om, udgifterne er rimelige og nødvendige samt sædvanlige for typen af behandling/skade.\nForsikringen indeholder begrænsninger og undtagelser angående omfang og erstatningsbeløb. Det er dit ansvar at sætte dig ind i disse."]
[]
[]
[]
[null,{"$f":"+'ERV Data'!$D$1","v":"#40503 - Y2022_1.00"},{"$nulls":7},{"$f":"\"Tilbud side \" & SUM(L170+L260+L344+L424) & \"/\" & SUM(L170+L260+L344+L424+L503+L597+L684+L777)","v":"Tilbud side 4/7"}]
[{"$nulls":11},1]
[null,"Europæiske ERV",{"$nulls":7},"www.erv.dk"]
[null,"Frederiksberg Allé 3, DK-1790 København V",{"$nulls":7},"Telefon +45 33 25 25 25"]
[null,"CVR 62940514",{"$nulls":7},"Email erhverv@erv.dk"]
[]
[]
[]
[]
[null,"Forsikringsoversigt"]
[null,"Erhvervsrejseforsikring"]
[]
[null,"Oversigt over forsikringsbeløb pr. person og skade (DKK)"]
[]
[null,"TILLÆGSDÆKNING",{"$nulls":7},"Forsikringssum"]
[null,"ERSTATNINGSMEDARBEJDER STK. 12"]
[null,"Forsikrede erstattes af anden medarbejder pga. akut sygdom, tilskadekomst, dødsfald eller hjemkaldelse",{"$nulls":6},"Rimelige og nødvendige udgifter"]
[]
[null,"Refusion af ubenyttede rejseudgifter",{"$nulls":6},"50.000 pr. skade"]
[null,"TRYGHEDSPAKKEN STK. 13"]
[null,"Transport til sikker destination og/eller bopælsland, ifm. evakuering, hvis Udenrigsministeriet eller lokale myndigheder anbefaler at forlade det område, du befinder dig i.",{"$nulls":6},"Rimelige og nødvendige udgifter"]
[]
[null,"Hotelophold, kost, lokaltransport",{"$nulls":6},"2.000 pr. dag"]
[null,"Erstatningsindkøb af tøj og toiletartikler",{"$nulls":6},"6.000 pr. rejse"]
[null,"Forlænget ophold ved tilbageholdelse pga. naturkatastrofer, karantæne, terroraktioner, udbrud af krig eller politiske uroligheder",{"$nulls":6},"50.000 pr. rejse"]
[]
[null,"Ekstraudgifter til tøj, toiletartikler eller anden udgift, hvis adgang til private ejendele ikke er mulig pga. myndigheders afspærring",{"$nulls":6},"6.000 pr. rejse"]
[]
[null,"Eftersøgning og redning",{"$nulls":6},"250.000 pr. skade/500.000 pr. skadebegivenhed"]
[null,"Gidselkompensation, dækning ved kidnapning eller kapring",{"$nulls":6},"Samlet forsikringssum 750.000 pr. skadebegivenhed (se fordeling nedenfor)"]
[]
[null,"Forsikrede:\n▪ Dagskompensation\n▪ Psykologisk krisehjælp",{"$nulls":6},"\n2.500, dog max. 250.000\n50.000"]
[]
[]
[]
[null,"Forsikrede:\n▪ Udgifter til rådgivning og forhandling\n▪ Transportudgifter til erstatningsperson\n▪ Lønkompensation for medarbejder",{"$nulls":6},"\n50.000\n50.000\n250.000"]
[]
[]
[]
[]
[null,"Ægtefælle/samlever, børn, søskende, forældre:\n▪ Telefonisk kriseberedskab\n▪ Transport, ophold, forplejning samt tabt arbejdsfortjeneste",{"$nulls":6},"\n50.000\n50.000"]
[]
[]
[]
[null,"PRIVATANSVAR OG GLOBAL JURIDISK ASSISTANCE STK. 14"]
[null,"Privatansvar, person og tingskade over for tredjepart. Skader på lejet bolig/hotelværelse samt indbo.",{"$nulls":6},"Personskade: 10.000.000 pr. rejse\nTingskade: 10.000.000 pr. rejse"]
[]
[null,"Global juridisk assistance, retstvister opstået under erhvervsrejse til udlandet.\nAdvokatomkostninger, udgifter til syn og skøn, rejseudgifter.",{"$nulls":6},"Se forsikringspolice"]
[]
[null,"Sikkerhedsstillelse/kaution",{"$nulls":6},"Se forsikringspolice"]
[null,"OVERFALD STK. 15"]
[null,"Personskade som følge af overfald",{"$nulls":6},"1.000.000 pr. skadestilfælde"]
[null,"DÆKNING AF SELVRISIKO STK. 16 – GÆLDER KUN VED FAST BOPÆL I EU"]
[null,"Dækker selvrisiko på egen indboforsikring ved skader på bopæl i bopælsland under erhvervsrejse.",{"$nulls":6},"15.000 pr. skadestilfælde"]
[]
[null,"Dækker selvrisiko på egen bilforsikring ved kaskoskader på privatejet/leaset bil, som bruges på erhvervsrejse, eller står ubenyttet i bopælsland.",{"$nulls":6},"15.000 pr. skadestilfælde"]
[]
[null,"SELVRISIKO VED LEJE AF MOTORKØRETØJ STK. 17"]
[null,"Dækker selvrisiko i forbindelse med kaskoskade på lejet bil, autocamper, båd,\nmotorcykel, knallert, snescooter eller cykel.",{"$nulls":6},"25.000 pr. skadestilfælde"]
[]
[null,"AFBESTILLING STK. 18"]
[null,"Dækker afbestilling af rejser/events såfremt sikrede ikke kan påbegynde sin\nerhvervsrejse f.eks. på grund af:\n▪ Akut sygdom el. dødsfald hos sikrede, dennes nærmeste familie, nær kollega eller den person \n som er formålet med rejsen\n▪ Særlige forhold i virksomheden\n▪ Særlige forhold ved sikredes private bopæl\n▪ Udenrigsministeriet fraråder al indrejse til bestemmelsesstedet.",{"$nulls":6},"Se forsikringspolice"]
{"$rows_empty":13}
[null,"Som udgangspunkt, når der i betingelserne står ”rimelige og nødvendige udgifter”, er summen ubegrænset. Det er Europæiske ERVs skadesafdeling der vurderer om, udgifterne er rimelige og nødvendige samt sædvanlige for typen af behandling/skade.\nForsikringen indeholder begrænsninger og undtagelser angående omfang og erstatningsbeløb. Det er dit ansvar at sætte dig ind i disse."]
[]
[]
[]
[null,{"$f":"+'ERV Data'!$D$1","v":"#40503 - Y2022_1.00"},{"$nulls":7},{"$f":"\"Tilbud side \" & SUM(L170+L260+L344+L424+L503) & \"/\" & SUM(L170+L260+L344+L424+L503+L597+L684+L777)","v":"Tilbud side 5/7"}]
[{"$nulls":11},1]
[null,"Europæiske ERV",{"$nulls":7},"www.erv.dk"]
[null,"Frederiksberg Allé 3, DK-1790 København V",{"$nulls":7},"Telefon +45 33 25 25 25"]
[null,"CVR 62940514",{"$nulls":7},"Email erhverv@erv.dk"]
[]
[]
[]
[]
[]
[]
[null,"Hvorfor vælge Europæiske ERV ?"]
[]
[]
[]
[]
[]
[{"$nulls":3},"Kundefokuseret\n \nKonkurrencedygtig pris. Hurtig og korrekt udstedelse af police.",{"$nulls":4},"Skræddersyet løsning\n \nKundetilpassede forsikringer, som giver tryghed på rejsen"]
{"$rows_empty":12}
[{"$nulls":3},"Alarmcentral 24/7/365\n \nEuropæiske ERV egen dansk talende alarm - hjælp døgnet rundt hvis uheldet er ude",{"$nulls":4},"+100 års erfaring\n \nMere end 100 års erfaring med rejseforsikring til både virksomheder og private."]
{"$rows_empty":12}
[{"$nulls":3},"Online medicinsk\nforhåndstilsagn\n  \nGebyrfri, enkel og online medicinsk forhåndstilsagn ved behov før afrejse.",{"$nulls":4},"Online skadeanmeldelse\n   \nHurtig og nem online skades-anmeldelse - kan også anmeldes fra mobilen"]
{"$rows_empty":12}
[{"$nulls":3},"Kundens favorit\n  \nHele 84,5% af vores kunder vil anbefale Europæiske ERV til andre",{"$nulls":4},"ERV Travel & Care App\n  \nRådgivning om + 200 lande / områder, sikkerhed og sundhed."]
{"$rows_empty":12}
[{"$nulls":3},"Rabat\n  \nOp til 20% rabat på private rejseforsikringer til virksomhedens danske medarbejdere",{"$nulls":4},"Travel Security Hotline*\n  \n24/7 sikkerhedsrådgivning og assistance før og under rejsen.\n*Bemærk tilvalg."]
{"$rows_empty":9}
[{"$nulls":8},""]
{"$rows_empty":14}
[null,{"$f":"+'ERV Data'!$D$1","v":"#40503 - Y2022_1.00"},{"$nulls":7},{"$f":"\"Tilbud side \" & SUM(L170+L260+L344+L424+L503+L597) & \"/\" & SUM(L170+L260+L344+L424+L503+L597+L684+L777)","v":"Tilbud side 6/7"}]
[{"$nulls":11},1]
[null,"Europæiske ERV",{"$nulls":7},"www.erv.dk"]
[null,"Frederiksberg Allé 3, DK-1790 København V",{"$nulls":7},"Telefon +45 33 25 25 25"]
[null,"CVR 62940514",{"$nulls":7},"Email erhverv@erv.dk"]
{"$rows_empty":82}
[null,{"$f":"+'ERV Data'!$D$1","v":"#40503 - Y2022_1.00"},{"$nulls":7},{"$f":"\"Tilbud side \" & SUM(L170+L260+L344+L424+L503+L597+L684) & \"/\" & SUM(L170+L260+L344+L424+L503+L597+L684+L777)","v":"Tilbud side 6/7"}]
[{"$nulls":11},{"$f":"IF('Præmie beregning'!B41=\"Ja\",1,0)","v":0}]
[null,"Europæiske ERV",{"$nulls":7},"www.erv.dk"]
[null,"Frederiksberg Allé 3, DK-1790 København V",{"$nulls":7},"Telefon +45 33 25 25 25"]
[null,"CVR 62940514",{"$nulls":7},"Email erhverv@erv.dk"]
[]
[]
[]
[]
[null,"Underskriftsblad"]
[]
[]
[]
[null,{"$f":"+'Info om virksomhed'!D8","v":"Indtast virksomhedens navn"}]
[null,{"$f":"+'Info om virksomhed'!D9","v":"Indtast adresse"}]
[null,{"$f":"CONCATENATE('Info om virksomhed'!D10,\" \",'Info om virksomhed'!D11)","v":"Indtast postnr Indtast by"}]
[]
[null,{"$f":"+'Info om virksomhed'!D13","v":"Indtast CVR nr"}]
[]
[null,{"$f":"+'Info om virksomhed'!D12","v":"Indtast primært bopælsland"}]
[]
[]
[]
[null,"Min underskrift på dette tilbud bekræfter min ansøgning om forsikring hos Europæiske ERV,"]
[null,"og giver samtidig Europæiske ERV fuldmagt til at opsige min eventuelt eksisterende erhvervsrejseforsikring."]
{"$rows_empty":14}
[null,{"$f":"CONCATENATE(+'Info om virksomhed'!D8,\", bekræftelse (sted, dato og underskrift)\")","v":"Indtast virksomhedens navn, bekræftelse (sted, dato og underskrift)"}]
[]
[]
[]
[]
[null,"Sted:",null,"Dato:",null,"Underskrift",{"$nulls":3},"Stempel"]
{"$rows_empty":12}
[null,{"$f":"CONCATENATE(+'ERV Data'!D14,\", bekræftelse (sted, dato og underskrift)\")","v":"Special Risk - forsikringsformidling ApS, bekræftelse (sted, dato og underskrift)"}]
[null,{"$f":"CONCATENATE(\"Agentnummer: \",'Bruger info'!D9)","v":"Agentnummer: 3501601 "}]
[]
[]
[]
[null,"Sted:",null,"Dato:",null,"Underskrift",{"$nulls":3},"Stempel"]
{"$rows_empty":30}
[null,{"$f":"+'ERV Data'!$D$1","v":"#40503 - Y2022_1.00"},{"$nulls":7},{"$f":"\"Tilbud side \" & SUM(L170+L260+L344+L424+L503+L597+L684+L777) & \"/\" & SUM(L170+L260+L344+L424+L503+L597+L684+L777)","v":"Tilbud side 7/7"}]
[{"$nulls":11},1]
[null,"Europæiske ERV",{"$nulls":7},"www.erv.dk"]
[null,"Frederiksberg Allé 3, DK-1790 København V",{"$nulls":7},"Telefon +45 33 25 25 25"]
[null,"CVR 62940514",{"$nulls":7},"Email erhverv@erv.dk"]

{"sheet":"PDF accepteret tilbud","index":8,"n_rows":263,"n_cols":27,"rows_kept":263,"hidden":true,"merged":[[4,1,5,10],[7,1,8,10],[10,1,11,10],[13,4,14,8],[35,4,38,5],[35,7,39,10],[40,4,41,5],[40,7,41,8],[43,4,43,5],[45,4,46,5],[45,7,46,8],[48,4,48,5],[49,4,49,5],[50,4,50,5],[51,4,51,5],[51,7,51,8],[53,4,53,5],[53,7,53,8],[54,4,54,5],[54,7,54,8],[55,4,55,8],[56,4,57,8],[58,4,58,8],[59,4,59,5],[59,7,59,8],[60,4,60,5],[60,7,60,8],[61,4,61,5],[61,7,61,8],[62,4,62,5],[62,7,62,8],[63,4,63,5],[63,7,63,8],[66,4,67,8],[69,4,80,8],[81,9,81,11],[83,9,83,11],[84,9,84,11],[85,9,85,11],[93,8,93,10],[95,10,95,11],[96,10,96,11],[97,10,97,11],[98,10,98,11],[99,10,99,11],[100,10,100,11],[101,10,101,11],[102,10,102,11],[129,2,130,8],[129,10,130,10],[145,2,149,9],[145,10,149,10],[151,2,156,9],[161,2,161,9],[168,9,168,11],[170,9,170,11],[171,9,171,11],[172,9,172,11],[179,7,179,10],[258,9,258,11],[260,9,260,11],[261,9,261,11],[262,9,262,11]]}
[{"$nulls":26},{"$f":"'Præmie beregning'!B41","v":"Fravalgt"}]
[{"$nulls":26},"Fravalgt"]
[]
[]
[null,"Venligst indsend denne pdf til"]
[]
[]
[null,"erhverv@erv.dk"]
[]
[]
[null,"Nedenstående tilbud er hermed accepteret, venligst fremsend police."]
[]
[]
[{"$nulls":4},"Information om virksomheden"]
[]
[]
[{"$nulls":4},"Virksomhedens navn",null,null,{"$f":"'Info om virksomhed'!D8","v":"Indtast virksomhedens navn"}]
[{"$nulls":4},"Adresse",null,null,{"$f":"'Info om virksomhed'!D9","v":"Indtast adresse"}]
[{"$nulls":4},"Postnr",null,null,{"$f":"'Info om virksomhed'!D10","v":"Indtast postnr"}]
[{"$nulls":4},"By",null,null,{"$f":"'Info om virksomhed'!D11","v":"Indtast by"}]
[{"$nulls":4},"Land",null,null,{"$f":"'Info om virksomhed'!D12","v":"Indtast primært bopælsland"}]
[{"$nulls":4},"CVR nummer",null,null,{"$f":"'Info om virksomhed'!D13","v":"Indtast CVR nr"}]
[]
[{"$nulls":4},"Kontaktperson i virksomhed",null,null,{"$f":"'Info om virksomhed'!D15","v":"Indtast kontaktperson"}]
[{"$nulls":4},"Tlf. nummer på kontaktperson",null,null,{"$f":"'Info om virksomhed'!D16","v":"Indtast tlf"}]
[{"$nulls":4},"E-mail på kontaktperson",null,null,{"$f":"'Info om virksomhed'!D17","v":"Indtast email"}]
[]
[{"$nulls":4},"Start for forsikring",null,null,{"$f":"'Info om virksomhed'!D19","v":"dd-mm-år"}]
[{"$nulls":4},"Hovedforfald",null,null,{"$f":"'Info om virksomhed'!D20","v":"mm-år"}]
[]
[{"$nulls":4},"Antal betalingsrater pr. år",null,null,{"$f":"'Info om virksomhed'!D22","v":1}]
[]
[{"$nulls":4},"Sprog på police- dansk/engelsk",null,null,{"$f":"'Info om virksomhed'!D24","v":"Dansk"}]
[{"$nulls":4},"Antal policekort",null,null,{"$f":"'Info om virksomhed'!D25","v":1}]
[]
[{"$nulls":4},"Medforsikrede datterselskaber,\ninkl. cvr numre",null,null,{"$f":"'Info om virksomhed'!D27 & \"\"","v":"Indtast datterselskaber inkl cvr nummer "}]
{"$rows_empty":7}
[{"$nulls":7},{"$f":"'Info om virksomhed'!D32 & \"\"","v":""}]
[]
[{"$nulls":4},{"$f":"'Info om virksomhed'!C34","v":"Har kunden forsikring i eksisterende\nselskab som skal opsiges? "},null,null,{"$f":"'Info om virksomhed'!D34 & \"\"","v":"Nej"}]
[]
[]
[{"$nulls":4},{"$f":"'Info om virksomhed'!C36","v":""},null,null,{"$f":"IF($H$46=\"Ja\",'Info om virksomhed'!D36,\"\")","v":""}]
[{"$nulls":4},{"$f":"'Info om virksomhed'!C37","v":""},null,null,{"$f":"IF($H$46=\"Ja\",'Info om virksomhed'!D37,\"\")","v":""},{"$nulls":5},{"$f":"'Info om virksomhed'!D30 &\"\"","v":""}]
[{"$nulls":4},{"$f":"'Info om virksomhed'!C38","v":""},null,null,{"$f":"IF($H$46=\"Ja\",'Info om virksomhed'!D38,\"\")","v":""}]
[{"$nulls":4},{"$f":"'Info om virksomhed'!C39","v":""},null,null,{"$f":"IF($H$46=\"Ja\",'Info om virksomhed'!D39,\"\")","v":""}]
[]
[{"$nulls":4},"NIS INFO:",null,null,{"$f":"+'Bruger info'!D16","v":{"v":0,"d":"0%"}}]
[{"$nulls":4},{"$f":"+'ERV Data'!C13","v":"HUSK i NIS: Sales method"},null,null,{"$f":"+'ERV Data'!D13","v":"Solgt via beregner"}]
[]
[{"$nulls":4},{"$f":"+'Bruger info'!C6","v":"Special Risk - forsikringsformidling ApS information"}]
[]
[]
[{"$nulls":4},"Agent:","Agent:",null,{"$f":"+'Bruger info'!D8","v":"Special Risk - forsikringsformidling ApS"}]
[{"$nulls":4},"Kontaktperson","Kontaktperson",null,{"$f":"'Bruger info'!D10 & \"\"","v":"Kontakt person - Agent"}]
[{"$nulls":4},"Email - kontaktperson","Email - kontaktperson",null,{"$f":"+'Bruger info'!D11 &\"\"","v":"Email Kontakt person - Agent"}]
[{"$nulls":4},"Tlf - kontaktperson","Tlf - kontaktperson",null,{"$f":"+'Bruger info'!D12 &\"\"","v":"Tlf Kontakt person - Agent"}]
[{"$nulls":4},"Agentnummer","Agentnummer",null,{"$f":"+'Bruger info'!D9","v":"3501601 "}]
[]
[]
[{"$nulls":4},"Øvrige forhold der skal noteres fra klausuler"]
[]
[]
[{"$nulls":4},{"$f":"Klausuler!D19 & \"\"","v":""}]
{"$rows_empty":11}
[null,{"$f":"+'ERV Data'!$D$1","v":"#40503 - Y2022_1.00"},{"$nulls":7},"Tilbud side 1/3"]
[]
[null,"Europæiske ERV",{"$nulls":7},"www.erv.dk"]
[null,"Frederiksberg Allé 3, DK-1790 København V",{"$nulls":7},"Telefon +45 33 25 25 25"]
[null,"CVR 62940514",{"$nulls":7},"Email erhverv@erv.dk"]
[]
[]
[]
[]
[null,"Accepteret tilbud"]
[]
[]
[null,"Forsikringstager",{"$nulls":6},"40502, CTI"]
[]
[null,{"$f":"'Info om virksomhed'!D8","v":"Indtast virksomhedens navn"},{"$nulls":6},"Ikrafttrædelsesdato",null,{"$f":"'Info om virksomhed'!D19","v":"dd-mm-år"}]
[null,{"$f":"'Info om virksomhed'!D9","v":"Indtast adresse"},{"$nulls":6},"Hovedforfaldsdato",null,{"$f":"'Info om virksomhed'!D20","v":"mm-år"}]
[null,{"$f":"CONCATENATE('Info om virksomhed'!D10,\" \",'Info om virksomhed'!D11)","v":"Indtast postnr Indtast by"},{"$nulls":6},"Forsikringsperiode",null,"1 år"]
[null,{"$f":"+'Info om virksomhed'!D12","v":"Indtast primært bopælsland"},{"$nulls":6},"Antal betalingsrater pr. år",null,{"$f":"+'Info om virksomhed'!D22","v":1}]
[{"$nulls":8},"Forsikringsbetingelser",null,"40502"]
[{"$nulls":8},"Agenturnr.",null,{"$f":"'Bruger info'!D9","v":"3501601 "}]
[{"$nulls":8},"Valuta",null,"DKK"]
[{"$nulls":8},"Udstedelsesdato",null,{"$f":"TODAY()","v":"2022-11-29"}]
[]
[]
[]
[]
[]
[null,"Særlige betingelser og klausuler:"]
[]
[null,null,"Klausuler:"]
[null,null,"Medrejsende ægtefæller/samlever",{"$nulls":6},{"$f":"+Klausuler!D8","v":"Ja"}]
[null,null,"Medrejsende børn",{"$nulls":6},{"$f":"+Klausuler!D9","v":"Ja"}]
[null,null,"Kombinerede erhvervs- og ferierejser",{"$nulls":6},{"$f":"+Klausuler!D10","v":"Ja"}]
[null,null,"Bestyrelsesmedlemmer",{"$nulls":6},{"$f":"+Klausuler!D12","v":"Ja"}]
[null,null,"Inviterede gæster",{"$nulls":6},{"$f":"+Klausuler!D13","v":"Ja"}]
[null,null,"Eksterne konsulenter",{"$nulls":6},{"$f":"+Klausuler!D14","v":"Ja"}]
[null,null,"Medforsikrede datterselskaber",{"$nulls":6},{"$f":"+Klausuler!D16","v":"Fravalgt"}]
[]
[]
[]
[]
[]
[null,null,"Forsikringen omfatter de hos forsikringstageren medarbejdende ejere og medejere samt de hos"]
[null,null,"forsikringstageren ansatte personer under erhvervsrejser over alt i verden. Erhvervsrejser i bopælslandet er"]
[null,null,"dækket, såfremt dette er anført særskilt."]
[]
[null,null,"Forsikringstageren fører regnskab med rejseaktiviteten, som grundlag for præmiens beregning."]
[]
[null,null,{"$f":"'PDF tilbud'!C130","v":"Policen er udvidet til at omfatte: medrejsende ægtefæller/samlever, medrejsende børn, kombinerede erhvervs- og ferierejser, bestyrelsesmedlemmer, inviterede gæster, eksterne konsulenter, "}]
[]
[]
[]
[]
[null,null,"Forsikringen dækker tillige under rejser i områder som er defineret på Europæiskes krigs- og risikoliste som"]
[null,null,"risikozoner (krigszoner undtaget)."]
[]
[null,null,{"$f":"'PDF tilbud'!C138","v":"Minimumspræmien pr. forsikringsår andrager kr. 1.600."}]
[]
[null,null,"De bestilte BTI-kort sendes særskilt via Europæiskes kortleverandør."]
[]
[null,null,"Præmien er baseret på 2023 præmier og indekseres pr. 1. januar 2024."]
[]
[null,null,"Præmien er inkl. specialrabat."]
[]
[null,null,{"$f":"'PDF tilbud'!C146","v":"Europæiske ERV gør opmærksom på at forsikringsagenten modtager provision/vederlag som følge af forsikringsformidlingen. Ved anmodning er det muligt at få oplyst provisionens/vederlagets størrelse. Enhver ændring af denne aftale skal bekræftes af Europæiske ERV senest 1 måned før policens hovedforfald. I et sådant tilfælde forbeholder Europæiske ERV sig ret til, at ændre præmien ved førstkommende hovedforfaldsdato."}]
{"$rows_empty":15}
[null,null,"Såfremt et land er nævnt på ERVs krigszoneliste, skal der tegnes separat krigszoneforsikring."]
[null,null,"Se mere på:","erv.dk"]
[null,null,"Kontakt ERV for tilbud."]
[]
[]
[]
[]
[null,{"$f":"+'ERV Data'!$D$1","v":"#40503 - Y2022_1.00"},{"$nulls":7},"Tilbud side 2/3"]
[]
[null,"Europæiske ERV",{"$nulls":7},"www.erv.dk"]
[null,"Frederiksberg Allé 3, DK-1790 København V",{"$nulls":7},"Telefon +45 33 25 25 25"]
[null,"CVR 62940514",{"$nulls":7},"Email erhverv@erv.dk"]
[]
[]
[]
[]
[null,"Accepteret tilbud"]
[]
[{"$nulls":7},"Præmie pr. person pr. dag"]
[]
[null,"Dækningsoversigt",{"$nulls":3},"Forsikringssum",null,"Norden","Europa","Verden","Bopælsland"]
[]
[null,"Obligatorisk grunddækning"]
[null,"Norden",{"$nulls":3},{"$f":"'Præmie beregning'!G11","v":"Ubegrænset"},null,{"$f":"'Præmie beregning'!J11","v":11.72},"-","-","-"]
[null,"Europa",{"$nulls":3},{"$f":"'Præmie beregning'!G12","v":"Ubegrænset"},null,"-",{"$f":"'Præmie beregning'!J12","v":{"v":30.5,"d":"30.50"}},"-","-"]
[null,"Verden",{"$nulls":3},{"$f":"'Præmie beregning'!G13","v":"Ubegrænset"},null,"-","-",{"$f":"'Præmie beregning'!J13","v":50.58},"-"]
[]
[]
[null,"Tillægsdækning"]
[null,"Rejseulykke",{"$nulls":5},{"$f":"'Præmie beregning'!J17","v":{"v":8.049999999999999,"d":"8.05"}},{"$f":"'Præmie beregning'!J17","v":{"v":8.049999999999999,"d":"8.05"}},{"$f":"'Præmie beregning'!J17","v":{"v":8.049999999999999,"d":"8.05"}},{"$f":"'Præmie beregning'!J17","v":{"v":8.049999999999999,"d":"8.05"}}]
[null,null,"Ulykke - Død",null,null,{"$f":"'Præmie beregning'!G16","v":{"v":500000,"d":"500,000"}}]
[null,null,"Ulykke - Invaliditet",null,null,{"$f":"'Præmie beregning'!G17","v":{"v":500000,"d":"500,000"}}]
[null,null,"Dobbelt erstatning ",null,null,{"$f":"'Præmie beregning'!B18","v":"Ja"}]
[]
[null,"Rejseliv og sygdomsinvaliditet",{"$nulls":5},{"$f":"'Præmie beregning'!J22","v":{"v":8.5,"d":"8.50"}},{"$f":"'Præmie beregning'!J22","v":{"v":8.5,"d":"8.50"}},{"$f":"'Præmie beregning'!J22","v":{"v":8.5,"d":"8.50"}},{"$f":"'Præmie beregning'!J22","v":{"v":8.5,"d":"8.50"}}]
[null,null,"Livsforsikring Død",null,null,{"$f":"'Præmie beregning'!G21","v":{"v":500000,"d":"500,000"}}]
[null,null,"Sygdomsinvaliditet",null,null,{"$f":"'Præmie beregning'!G22","v":{"v":500000,"d":"500,000"}}]
[]
[null,"Forsinket fremmøde - mistet, forsinket eller aflyst afgang",{"$nulls":5},{"$f":"'Præmie beregning'!J24","v":{"v":3.210636,"d":"3.21"}},{"$f":"'Præmie beregning'!J24","v":{"v":3.210636,"d":"3.21"}},{"$f":"'Præmie beregning'!J24","v":{"v":3.210636,"d":"3.21"}},{"$f":"'Præmie beregning'!J24","v":{"v":3.210636,"d":"3.21"}}]
[]
[null,"Bagageforsinkelse",{"$nulls":3},{"$f":"'Præmie beregning'!G27","v":{"v":5000,"d":"5,000"}},null,{"$f":"'Præmie beregning'!J27","v":{"v":11.596458,"d":"11.60"}},{"$f":"'Præmie beregning'!J27","v":{"v":11.596458,"d":"11.60"}},{"$f":"'Præmie beregning'!J27","v":{"v":11.596458,"d":"11.60"}},{"$f":"'Præmie beregning'!J27","v":{"v":11.596458,"d":"11.60"}}]
[]
[]
[null,"Vejhjælp",{"$nulls":5},{"$f":"'Præmie beregning'!J29","v":{"v":0.5613,"d":"0.56"}},{"$f":"'Præmie beregning'!J29","v":{"v":0.5613,"d":"0.56"}},{"$f":"'Præmie beregning'!J29","v":{"v":0.5613,"d":"0.56"}},{"$f":"'Præmie beregning'!J29","v":{"v":0.5613,"d":"0.56"}}]
[]
[null,"Bagage",{"$nulls":5},{"$f":"'Præmie beregning'!J33","v":{"v":5.4863600144,"d":"5.49"}},{"$f":"'Præmie beregning'!J33","v":{"v":5.4863600144,"d":"5.49"}},{"$f":"'Præmie beregning'!J33","v":{"v":5.4863600144,"d":"5.49"}},{"$f":"'Præmie beregning'!J33","v":{"v":5.4863600144,"d":"5.49"}}]
[null,null,"Bagage",null,null,{"$f":"'Præmie beregning'!G32","v":{"v":30000,"d":"30,000"}}]
[null,null,"Kontanter",null,null,{"$f":"'Præmie beregning'!G33","v":{"v":5000,"d":"5,000"}}]
[]
[null,"Hjemkald",{"$nulls":5},{"$f":"'Præmie beregning'!J35","v":{"v":4.546530000000001,"d":"4.55"}},{"$f":"'Præmie beregning'!J35","v":{"v":4.546530000000001,"d":"4.55"}},{"$f":"'Præmie beregning'!J35","v":{"v":4.546530000000001,"d":"4.55"}},"-"]
[]
[null,"Erstatningsmedarbejder",{"$nulls":5},{"$f":"'Præmie beregning'!J37","v":{"v":0.426588,"d":"0.43"}},{"$f":"'Præmie beregning'!J37","v":{"v":0.426588,"d":"0.43"}},{"$f":"'Præmie beregning'!J37","v":{"v":0.426588,"d":"0.43"}},"-"]
[]
[null,{"$f":"IF('Præmie beregning'!B41=\"Ja\",\"Udvidet tryghedspakke\",\"Tryghedspakke\")","v":"Tryghedspakke"},{"$nulls":5},{"$f":"IF('Præmie beregning'!B41=\"Ja\",SUM('ERV præmie satser'!L35+'ERV præmie satser'!L71),'ERV præmie satser'!L35)","v":{"v":1.167504,"d":"1.17"}},{"$f":"IF('Præmie beregning'!B41=\"Ja\",SUM('ERV præmie satser'!L35+'ERV præmie satser'!L72),'ERV præmie satser'!L35)","v":{"v":1.167504,"d":"1.17"}},{"$f":"IF('Præmie beregning'!B41=\"Ja\",SUM('ERV præmie satser'!L35+'ERV præmie satser'!L73),'ERV præmie satser'!L35)","v":{"v":1.167504,"d":"1.17"}},{"$f":"IF('Præmie beregning'!B41=\"Ja\",SUM('ERV præmie satser'!L35+'ERV præmie satser'!L70),'ERV præmie satser'!L35)","v":{"v":1.167504,"d":"1.17"}}]
[]
[null,"Privatansvar og global juridisk assistance",{"$nulls":5},{"$f":"'Præmie beregning'!J43","v":{"v":0.684786,"d":"0.68"}},{"$f":"'Præmie beregning'!J43","v":{"v":0.684786,"d":"0.68"}},{"$f":"'Præmie beregning'!J43","v":{"v":0.684786,"d":"0.68"}},{"$f":"'Præmie beregning'!J43","v":{"v":0.684786,"d":"0.68"}}]
[]
[null,"Overfald",{"$nulls":5},{"$f":"'Præmie beregning'!J45","v":{"v":1.1226,"d":"1.12"}},{"$f":"'Præmie beregning'!J45","v":{"v":1.1226,"d":"1.12"}},{"$f":"'Præmie beregning'!J45","v":{"v":1.1226,"d":"1.12"}},{"$f":"'Præmie beregning'!J45","v":{"v":1.1226,"d":"1.12"}}]
[]
[null,"Selvrisiko indbo- og bilforsikring – gælder kun ved fast bopæl i EU",{"$nulls":5},{"$f":"'Præmie beregning'!J47","v":{"v":1.5716400000000001,"d":"1.57"}},{"$f":"'Præmie beregning'!J47","v":{"v":1.5716400000000001,"d":"1.57"}},{"$f":"'Præmie beregning'!J47","v":{"v":1.5716400000000001,"d":"1.57"}},{"$f":"'Præmie beregning'!J47","v":{"v":1.5716400000000001,"d":"1.57"}}]
[]
[null,"Selvrisiko ved leje af motorkøretøj",{"$nulls":5},{"$f":"'Præmie beregning'!J49","v":{"v":0.5613,"d":"0.56"}},{"$f":"'Præmie beregning'!J49","v":{"v":0.5613,"d":"0.56"}},{"$f":"'Præmie beregning'!J49","v":{"v":0.5613,"d":"0.56"}},{"$f":"'Præmie beregning'!J49","v":{"v":0.5613,"d":"0.56"}}]
[]
[null,"Afbestilling",{"$nulls":3},{"$f":"'Præmie beregning'!G52","v":{"v":5000,"d":"5,000"}},null,{"$f":"'Præmie beregning'!J52","v":{"v":10.732056000000002,"d":"10.73"}},{"$f":"'Præmie beregning'!J52","v":{"v":10.732056000000002,"d":"10.73"}},{"$f":"'Præmie beregning'!J52","v":{"v":10.732056000000002,"d":"10.73"}},{"$f":"'Præmie beregning'!J52","v":{"v":10.732056000000002,"d":"10.73"}}]
[]
[null,"Præmie pr. dag*:",{"$nulls":5},{"$f":"'Præmie beregning'!J55","v":{"v":69.93775801440002,"d":"69.94"}},{"$f":"'Præmie beregning'!J56","v":{"v":88.71775801439999,"d":"88.72"}},{"$f":"'Præmie beregning'!J57","v":{"v":108.7977580144,"d":"108.80"}},{"$f":"'Præmie beregning'!J58","v":{"v":53.24464001440001,"d":"53.24"}}]
[null,"Budgetdage:",{"$nulls":5},{"$f":"'Præmie beregning'!G55","v":0},{"$f":"'Præmie beregning'!G56","v":0},{"$f":"'Præmie beregning'!G57","v":0},{"$f":"'Præmie beregning'!G58","v":0}]
[]
[null,"Præmie for alle dage*:",{"$nulls":5},{"$f":"'Præmie beregning'!K55","v":{"v":0,"d":"0.00"}},{"$f":"'Præmie beregning'!K56","v":{"v":0,"d":"0.00"}},{"$f":"'Præmie beregning'!K57","v":{"v":0,"d":"0.00"}},{"$f":"'Præmie beregning'!K58","v":{"v":0,"d":"0.00"}}]
[]
[]
[null,{"$f":"'Præmie beregning'!B60","v":"Præmie, ekskl. skadeforsikringsafgift til staten"},{"$nulls":8},{"$f":"'Præmie beregning'!K60","v":{"v":1600,"d":"1,600.00"}}]
[]
[null,{"$f":"'Præmie beregning'!B62","v":"Skadesforsikringsafgift, 1.1 %"},{"$nulls":8},{"$f":"'Præmie beregning'!K62","v":{"v":17.6,"d":"17.60"}}]
[null,{"$f":"'Præmie beregning'!B63","v":"***Indtast valgfri tekst ***"},{"$nulls":8},{"$f":"IF('Præmie beregning'!K63=0,\"\",'Præmie beregning'!K63)","v":""}]
[null,{"$f":"'Præmie beregning'!B64","v":"Total (***Indtast valgfri tekst *** er ekskl. moms)"},{"$nulls":8},{"$f":"'Præmie beregning'!K64","v":{"v":1617.6,"d":"1,617.60"}}]
[null,{"$f":"'Præmie beregning'!B65","v":"Total"},{"$nulls":8},{"$f":"'Præmie beregning'!K65","v":{"v":1617.6,"d":"1,617.60"}}]
[]
[]
[]
[]
[]
[]
[null,"- = Dækning er ikke omfattet af policen"]
[]
[null,"* = Den anførte præmie kan være udregnet med flere end de to angivet decimaler"]
[]
[null,"Skadeforsikringsafgiften berigtiges efter lov om afgift af skadesforsikring."]
{"$rows_empty":9}
[null,{"$f":"+'ERV Data'!$D$1","v":"#40503 - Y2022_1.00"},{"$nulls":7},"Tilbud side 3/3"]
[]
[null,"Europæiske ERV",{"$nulls":7},"www.erv.dk"]
[null,"Frederiksberg Allé 3, DK-1790 København V",{"$nulls":7},"Telefon +45 33 25 25 25"]
[null,"CVR 62940514",{"$nulls":7},"Email erhverv@erv.dk"]

{"sheet":"PDF certifikat","index":9,"n_rows":263,"n_cols":27,"rows_kept":263,"hidden":true,"merged":[[93,8,93,10],[95,10,95,11],[96,10,96,11],[97,10,97,11],[98,10,98,11],[99,10,99,11],[100,10,100,11],[101,10,101,11],[102,10,102,11],[129,2,130,8],[145,2,149,9],[151,2,156,9],[161,2,161,9],[168,9,168,11],[170,9,170,11],[171,9,171,11],[172,9,172,11],[179,7,179,10],[258,9,258,11],[260,9,260,11],[261,9,261,11],[262,9,262,11]]}
[{"$nulls":26},{"$f":"'Præmie beregning'!B41","v":"Fravalgt"}]
[{"$nulls":26},"Fravalgt"]
{"$rows_empty":7}
[null,"Certifikat til"]
[null,{"$f":"'Info om virksomhed'!D8 & \"\"","v":"Indtast virksomhedens navn"}]
{"$rows_empty":79}
[null,"Certifikat"]
[]
[]
[null,"Forsikringstager",{"$nulls":6},"40502, CTI"]
[]
[null,{"$f":"'Info om virksomhed'!D8","v":"Indtast virksomhedens navn"},{"$nulls":6},"Ikrafttrædelsesdato",null,{"$f":"'Info om virksomhed'!D19","v":"dd-mm-år"}]
[null,{"$f":"'Info om virksomhed'!D9","v":"Indtast adresse"},{"$nulls":6},"Hovedforfaldsdato",null,{"$f":"'Info om virksomhed'!D20","v":"mm-år"}]
[null,{"$f":"CONCATENATE('Info om virksomhed'!D10,\" \",'Info om virksomhed'!D11)","v":"Indtast postnr Indtast by"},{"$nulls":6},"Forsikringsperiode",null,"1 år"]
[null,{"$f":"+'Info om virksomhed'!D12","v":"Indtast primært bopælsland"},{"$nulls":6},"Antal betalingsrater pr. år",null,{"$f":"+'Info om virksomhed'!D22","v":1}]
[{"$nulls":8},"Forsikringsbetingelser",null,"40502"]
[{"$nulls":8},"Agenturnr.",null,{"$f":"'Bruger info'!D9","v":"3501601 "}]
[{"$nulls":8},"Valuta",null,"DKK"]
[{"$nulls":8},"Udstedelsesdato",null,{"$f":"TODAY()","v":"2022-11-29"}]
[]
[{"$nulls":8},"Certikatnr:",null,{"$f":"'Bruger admin'!F24","v":"Certifikat nr"}]
[]
[]
[]
[null,"Særlige betingelser og klausuler:"]
[]
[null,null,"Klausuler:"]
[null,null,"Medrejsende ægtefæller/samlever",{"$nulls":6},{"$f":"+Klausuler!D8","v":"Ja"}]
[null,null,"Medrejsende børn",{"$nulls":6},{"$f":"+Klausuler!D9","v":"Ja"}]
[null,null,"Kombinerede erhvervs- og ferierejser",{"$nulls":6},{"$f":"+Klausuler!D10","v":"Ja"}]
[null,null,"Bestyrelsesmedlemmer",{"$nulls":6},{"$f":"+Klausuler!D12","v":"Ja"}]
[null,null,"Inviterede gæster",{"$nulls":6},{"$f":"+Klausuler!D13","v":"Ja"}]
[null,null,"Eksterne konsulenter",{"$nulls":6},{"$f":"+Klausuler!D14","v":"Ja"}]
[null,null,"Medforsikrede datterselskaber",{"$nulls":6},{"$f":"+Klausuler!D16","v":"Fravalgt"}]
[]
[]
[]
[]
[]
[null,null,"Forsikringen omfatter de hos forsikringstageren medarbejdende ejere og medejere samt de hos"]
[null,null,"forsikringstageren ansatte personer under erhvervsrejser over alt i verden. Erhvervsrejser i bopælslandet er"]
[null,null,"dækket, såfremt dette er anført særskilt."]
[]
[null,null,"Forsikringstageren fører regnskab med rejseaktiviteten, som grundlag for præmiens beregning."]
[]
[null,null,{"$f":"CONCATENATE(IF(OR($J$112=\"Ja\",$J$113=\"Ja\",$J$114=\"Ja\",$J$115=\"Ja\",$J$116=\"Ja\",$J$117=\"Ja\"),\"Policen er udvidet til at omfatte: \",\" \"),IF(J112=\"Ja\",LOWER(CONCATENATE(C112,\", \",)),\"\"),IF(J113=\"Ja\",LOWER(CONCATENATE(C113,\", \",)),\"\"),IF(J114=\"Ja\",LOWER(CONCATENATE(C114,\", \",)),\"\"),IF(J115=\"Ja\",LOWER(CONCATENATE(C115,\", \",)),\"\"),IF(J116=\"Ja\",LOWER(CONCATENATE(C116,\", \",)),\"\"),IF(J117=\"Ja\",LOWER(CONCATENATE(C117,\", \",)),\"\"))","v":"Policen er udvidet til at omfatte: medrejsende ægtefæller/samlever, medrejsende børn, kombinerede erhvervs- og ferierejser, bestyrelsesmedlemmer, inviterede gæster, eksterne konsulenter, "}]
[]
[]
[]
[]
[null,null,"Forsikringen dækker tillige under rejser i områder som er defineret på Europæiskes krigs- og risikoliste som"]
[null,null,"risikozoner (krigszoner undtaget)."]
[]
[null,null,{"$f":"'PDF tilbud'!C138","v":"Minimumspræmien pr. forsikringsår andrager kr. 1.600."}]
[]
[null,null,"De bestilte BTI-kort sendes særskilt via Europæiskes kortleverandør."]
[]
[null,null,"Præmien er baseret på 2023 præmier og indekseres pr. 1. januar 2024."]
[]
[null,null,"Præmien er inkl. specialrabat."]
[]
[null,null,{"$f":"'PDF tilbud'!C146","v":"Europæiske ERV gør opmærksom på at forsikringsagenten modtager provision/vederlag som følge af forsikringsformidlingen. Ved anmodning er det muligt at få oplyst provisionens/vederlagets størrelse. Enhver ændring af denne aftale skal bekræftes af Europæiske ERV senest 1 måned før policens hovedforfald. I et sådant tilfælde forbeholder Europæiske ERV sig ret til, at ændre præmien ved førstkommende hovedforfaldsdato."}]
{"$rows_empty":15}
[null,null,"Såfremt et land er nævnt på ERVs krigszoneliste, skal der tegnes separat krigszone forsikring."]
[null,null,"Se mere på:","erv.dk","Venligst kontakt ERV for tilbud."]
[]
[null,null,"Produktinformation om vores forsikringer:",null,null,"Link"]
[]
[]
[]
[null,{"$f":"+'ERV Data'!$D$1","v":"#40503 - Y2022_1.00"},{"$nulls":7},"Tilbud side 1/2"]
[]
[null,"Europæiske ERV",{"$nulls":7},"www.erv.dk"]
[null,"Frederiksberg Allé 3, DK-1790 København V",{"$nulls":7},"Telefon +45 33 25 25 25"]
[null,"CVR 62940514",{"$nulls":7},"Email erhverv@erv.dk"]
[]
[]
[]
[]
[null,"Certifikat"]
[]
[{"$nulls":7},"Præmie pr. person pr. dag"]
[]
[null,"Dækningsoversigt",{"$nulls":3},"Forsikringssum",null,"Norden","Europa","Verden","Bopælsland"]
[]
[null,"Obligatorisk grunddækning"]
[null,"Norden",{"$nulls":3},{"$f":"'Præmie beregning'!G11","v":"Ubegrænset"},null,{"$f":"'Præmie beregning'!J11","v":11.72},"-","-","-"]
[null,"Europa",{"$nulls":3},{"$f":"'Præmie beregning'!G12","v":"Ubegrænset"},null,"-",{"$f":"'Præmie beregning'!J12","v":{"v":30.5,"d":"30.50"}},"-","-"]
[null,"Verden",{"$nulls":3},{"$f":"'Præmie beregning'!G13","v":"Ubegrænset"},null,"-","-",{"$f":"'Præmie beregning'!J13","v":50.58},"-"]
[]
[]
[null,"Tillægsdækning"]
[null,"Rejseulykke",{"$nulls":5},{"$f":"'Præmie beregning'!J17","v":{"v":8.049999999999999,"d":"8.05"}},{"$f":"'Præmie beregning'!J17","v":{"v":8.049999999999999,"d":"8.05"}},{"$f":"'Præmie beregning'!J17","v":{"v":8.049999999999999,"d":"8.05"}},{"$f":"'Præmie beregning'!J17","v":{"v":8.049999999999999,"d":"8.05"}}]
[null,null,"Ulykke - Død",null,null,{"$f":"'Præmie beregning'!G16","v":{"v":500000,"d":"500,000"}}]
[null,null,"Ulykke - Invaliditet",null,null,{"$f":"'Præmie beregning'!G17","v":{"v":500000,"d":"500,000"}}]
[null,null,"Dobbelt erstatning ",null,null,{"$f":"'Præmie beregning'!B18","v":"Ja"}]
[]
[null,"Rejseliv og sygdomsinvaliditet",{"$nulls":5},{"$f":"'Præmie beregning'!J22","v":{"v":8.5,"d":"8.50"}},{"$f":"'Præmie beregning'!J22","v":{"v":8.5,"d":"8.50"}},{"$f":"'Præmie beregning'!J22","v":{"v":8.5,"d":"8.50"}},{"$f":"'Præmie beregning'!J22","v":{"v":8.5,"d":"8.50"}}]
[null,null,"Livsforsikring Død",null,null,{"$f":"'Præmie beregning'!G21","v":{"v":500000,"d":"500,000"}}]
[null,null,"Sygdomsinvaliditet",null,null,{"$f":"'Præmie beregning'!G22","v":{"v":500000,"d":"500,000"}}]
[]
[null,"Forsinket fremmøde - mistet, forsinket eller aflyst afgang",{"$nulls":5},{"$f":"'Præmie beregning'!J24","v":{"v":3.210636,"d":"3.21"}},{"$f":"'Præmie beregning'!J24","v":{"v":3.210636,"d":"3.21"}},{"$f":"'Præmie beregning'!J24","v":{"v":3.210636,"d":"3.21"}},{"$f":"'Præmie beregning'!J24","v":{"v":3.210636,"d":"3.21"}}]
[]
[null,"Bagageforsinkelse",{"$nulls":3},{"$f":"'Præmie beregning'!G27","v":{"v":5000,"d":"5,000"}},null,{"$f":"'Præmie beregning'!J27","v":{"v":11.596458,"d":"11.60"}},{"$f":"'Præmie beregning'!J27","v":{"v":11.596458,"d":"11.60"}},{"$f":"'Præmie beregning'!J27","v":{"v":11.596458,"d":"11.60"}},{"$f":"'Præmie beregning'!J27","v":{"v":11.596458,"d":"11.60"}}]
[]
[]
[null,"Vejhjælp",{"$nulls":5},{"$f":"'Præmie beregning'!J29","v":{"v":0.5613,"d":"0.56"}},{"$f":"'Præmie beregning'!J29","v":{"v":0.5613,"d":"0.56"}},{"$f":"'Præmie beregning'!J29","v":{"v":0.5613,"d":"0.56"}},{"$f":"'Præmie beregning'!J29","v":{"v":0.5613,"d":"0.56"}}]
[]
[null,"Bagage",{"$nulls":5},{"$f":"'Præmie beregning'!J33","v":{"v":5.4863600144,"d":"5.49"}},{"$f":"'Præmie beregning'!J33","v":{"v":5.4863600144,"d":"5.49"}},{"$f":"'Præmie beregning'!J33","v":{"v":5.4863600144,"d":"5.49"}},{"$f":"'Præmie beregning'!J33","v":{"v":5.4863600144,"d":"5.49"}}]
[null,null,"Bagage",null,null,{"$f":"'Præmie beregning'!G32","v":{"v":30000,"d":"30,000"}}]
[null,null,"Kontanter",null,null,{"$f":"'Præmie beregning'!G33","v":{"v":5000,"d":"5,000"}}]
[]
[null,"Hjemkald",{"$nulls":5},{"$f":"'Præmie beregning'!J35","v":{"v":4.546530000000001,"d":"4.55"}},{"$f":"'Præmie beregning'!J35","v":{"v":4.546530000000001,"d":"4.55"}},{"$f":"'Præmie beregning'!J35","v":{"v":4.546530000000001,"d":"4.55"}},"-"]
[]
[null,"Erstatningsmedarbejder",{"$nulls":5},{"$f":"'Præmie beregning'!J37","v":{"v":0.426588,"d":"0.43"}},{"$f":"'Præmie beregning'!J37","v":{"v":0.426588,"d":"0.43"}},{"$f":"'Præmie beregning'!J37","v":{"v":0.426588,"d":"0.43"}},"-"]
[]
[null,{"$f":"IF('Præmie beregning'!B41=\"Ja\",\"Udvidet tryghedspakke\",\"Tryghedspakke\")","v":"Tryghedspakke"},{"$nulls":5},{"$f":"IF('Præmie beregning'!B41=\"Ja\",SUM('ERV præmie satser'!L35+'ERV præmie satser'!L71),'ERV præmie satser'!L35)","v":{"v":1.167504,"d":"1.17"}},{"$f":"IF('Præmie beregning'!B41=\"Ja\",SUM('ERV præmie satser'!L35+'ERV præmie satser'!L72),'ERV præmie satser'!L35)","v":{"v":1.167504,"d":"1.17"}},{"$f":"IF('Præmie beregning'!B41=\"Ja\",SUM('ERV præmie satser'!L35+'ERV præmie satser'!L73),'ERV præmie satser'!L35)","v":{"v":1.167504,"d":"1.17"}},{"$f":"IF('Præmie beregning'!B41=\"Ja\",SUM('ERV præmie satser'!L35+'ERV præmie satser'!L70),'ERV præmie satser'!L35)","v":{"v":1.167504,"d":"1.17"}}]
[]
[null,"Privatansvar og global juridisk assistance",{"$nulls":5},{"$f":"'Præmie beregning'!J43","v":{"v":0.684786,"d":"0.68"}},{"$f":"'Præmie beregning'!J43","v":{"v":0.684786,"d":"0.68"}},{"$f":"'Præmie beregning'!J43","v":{"v":0.684786,"d":"0.68"}},{"$f":"'Præmie beregning'!J43","v":{"v":0.684786,"d":"0.68"}}]
[]
[null,"Overfald",{"$nulls":5},{"$f":"'Præmie beregning'!J45","v":{"v":1.1226,"d":"1.12"}},{"$f":"'Præmie beregning'!J45","v":{"v":1.1226,"d":"1.12"}},{"$f":"'Præmie beregning'!J45","v":{"v":1.1226,"d":"1.12"}},{"$f":"'Præmie beregning'!J45","v":{"v":1.1226,"d":"1.12"}}]
[]
[null,"Selvrisiko indbo- og bilforsikring – gælder kun ved fast bopæl i EU",{"$nulls":5},{"$f":"'Præmie beregning'!J47","v":{"v":1.5716400000000001,"d":"1.57"}},{"$f":"'Præmie beregning'!J47","v":{"v":1.5716400000000001,"d":"1.57"}},{"$f":"'Præmie beregning'!J47","v":{"v":1.5716400000000001,"d":"1.57"}},{"$f":"'Præmie beregning'!J47","v":{"v":1.5716400000000001,"d":"1.57"}}]
[]
[null,"Selvrisiko ved leje af motorkøretøj",{"$nulls":5},{"$f":"'Præmie beregning'!J49","v":{"v":0.5613,"d":"0.56"}},{"$f":"'Præmie beregning'!J49","v":{"v":0.5613,"d":"0.56"}},{"$f":"'Præmie beregning'!J49","v":{"v":0.5613,"d":"0.56"}},{"$f":"'Præmie beregning'!J49","v":{"v":0.5613,"d":"0.56"}}]
[]
[null,"Afbestilling",{"$nulls":3},{"$f":"'Præmie beregning'!G52","v":{"v":5000,"d":"5,000"}},null,{"$f":"'Præmie beregning'!J52","v":{"v":10.732056000000002,"d":"10.73"}},{"$f":"'Præmie beregning'!J52","v":{"v":10.732056000000002,"d":"10.73"}},{"$f":"'Præmie beregning'!J52","v":{"v":10.732056000000002,"d":"10.73"}},{"$f":"'Præmie beregning'!J52","v":{"v":10.732056000000002,"d":"10.73"}}]
[]
[null,"Præmie pr. dag*:",{"$nulls":5},{"$f":"'Præmie beregning'!J55","v":{"v":69.93775801440002,"d":"69.94"}},{"$f":"'Præmie beregning'!J56","v":{"v":88.71775801439999,"d":"88.72"}},{"$f":"'Præmie beregning'!J57","v":{"v":108.7977580144,"d":"108.80"}},{"$f":"'Præmie beregning'!J58","v":{"v":53.24464001440001,"d":"53.24"}}]
[null,"Budgetdage:",{"$nulls":5},{"$f":"'Præmie beregning'!G55","v":0},{"$f":"'Præmie beregning'!G56","v":0},{"$f":"'Præmie beregning'!G57","v":0},{"$f":"'Præmie beregning'!G58","v":0}]
[]
[null,"Præmie for alle dage*:",{"$nulls":5},{"$f":"'Præmie beregning'!K55","v":{"v":0,"d":"0.00"}},{"$f":"'Præmie beregning'!K56","v":{"v":0,"d":"0.00"}},{"$f":"'Præmie beregning'!K57","v":{"v":0,"d":"0.00"}},{"$f":"'Præmie beregning'!K58","v":{"v":0,"d":"0.00"}}]
[]
[]
[null,{"$f":"'Præmie beregning'!B60","v":"Præmie, ekskl. skadeforsikringsafgift til staten"},{"$nulls":8},{"$f":"'Præmie beregning'!K60","v":{"v":1600,"d":"1,600.00"}}]
[]
[null,{"$f":"'Præmie beregning'!B62","v":"Skadesforsikringsafgift, 1.1 %"},{"$nulls":8},{"$f":"'Præmie beregning'!K62","v":{"v":17.6,"d":"17.60"}}]
[null,{"$f":"'Præmie beregning'!B63","v":"***Indtast valgfri tekst ***"},{"$nulls":8},{"$f":"'Præmie beregning'!K63","v":{"v":0,"d":"0.00"}}]
[null,{"$f":"'Præmie beregning'!B64","v":"Total (***Indtast valgfri tekst *** er ekskl. moms)"},{"$nulls":8},{"$f":"'Præmie beregning'!K62","v":{"v":17.6,"d":"17.60"}}]
[null,{"$f":"'Præmie beregning'!B65","v":"Total"},{"$nulls":8},{"$f":"'Præmie beregning'!K65","v":{"v":1617.6,"d":"1,617.60"}}]
[]
[]
[]
[]
[]
[]
[null,"- = Dækning er ikke omfattet af policen"]
[]
[null,"* = Den anførte præmie kan være udregnet med flere end de to angivet decimaler"]
[]
[null,"Skadeforsikringsafgiften berigtiges efter lov om afgift af skadesforsikring."]
{"$rows_empty":9}
[null,{"$f":"+'ERV Data'!$D$1","v":"#40503 - Y2022_1.00"},{"$nulls":7},"Tilbud side 2/2"]
[]
[null,"Europæiske ERV",{"$nulls":7},"www.erv.dk"]
[null,"Frederiksberg Allé 3, DK-1790 København V",{"$nulls":7},"Telefon +45 33 25 25 25"]
[null,"CVR 62940514",{"$nulls":7},"Email erhverv@erv.dk"]

{"sheet":"ERV præmie satser","index":10,"n_rows":102,"n_cols":28,"rows_kept":102,"hidden":true,"merged":[[0,1,0,11],[2,6,3,6],[2,9,3,9],[3,13,3,14],[3,17,3,18]]}
[null,{"$f":"CONCATENATE(\"Præmie 2021 (NIS Index \",$S$1,\") - NIS præmier\")","v":"Præmie 2021 (NIS Index 1,1226) - NIS præmier"},{"$nulls":15},"ERV INDEX 2021",{"$f":"Y3","v":1.1226},{"$nulls":4},"New index:",1.0168]
[{"$nulls":23},"Last Year",1.0376]
[null,"Forsikringsdækning",{"$nulls":4},"Forsikringssum",null,null,"Dagspræmie",null,"Rabat i %",{"$nulls":10},"SKRIV HER","This year",1.1226,"SKRIV HER",null,1.0376]
[{"$nulls":11},{"$f":"'Bruger info'!D16","v":{"v":0,"d":"0%"}},null,"Input from Customer - Denmark",{"$nulls":3},"Price calculation",{"$nulls":5},"Calc index",{"$f":"+Y3/Y2","v":1.0819198149575944}]
[null,"1.",null,"Grunddækning"]
[{"$nulls":3},"(Sygdom/tilskadekomst, Hjemtransport, Sygeledsagelse/Tilkaldelse, Krise Hjælp)",{"$nulls":9},"Travel Days",{"$nulls":5},"D.06/11-2021"]
[{"$nulls":3},"a. Norden",null,null,"Ubegrænset",null,null,{"$f":"S8","v":11.72},null,{"$f":"J7-(J7*$L$4)","v":11.72},null,"Domestic Travel Days",{"$f":"G51","v":0},null,null,"Domestic",{"v":0,"d":"0.00"}]
[{"$nulls":3},"b. Europa",null,null,"Ubegrænset",null,null,{"$f":"S9","v":{"v":30.5,"d":"30.50"}},null,{"$f":"J8-(J8*$L$4)","v":{"v":30.5,"d":"30.50"}},null,"Nordic Travel days",{"$f":"G52","v":0},null,null,"Norden",{"v":11.72,"d":"11.720"},"=S12+S23+S26+S29"]
[{"$nulls":3},"c. Verden",null,null,"Ubegrænset",null,null,{"$f":"S10","v":50.58},null,{"$f":"J9-(J9*$L$4)","v":50.58},null,"Travel days Europe",{"$f":"G53","v":0},null,null,"Europa",{"v":30.5,"d":"30.500"},"=T12+T23+T26+T29",{"$nulls":3},"2019 præmier der beregnes index på"]
[{"$nulls":13},"Travel days World",{"$f":"G54","v":0},null,null,"Verden",{"v":50.58,"d":"50.580"},"=U12+U23+U26+U29",{"$nulls":3},"Last Year"]
[null,"2.",{"$f":"'Præmie beregning'!B15","v":"Ja"},"Rejseulykke: ",{"$nulls":14},"Norden","Europa","Verden",null,null,"Norden","Europa","Verden"]
[{"$nulls":3},"(ml. 0-2.000.000)","død",null,{"$f":"'Præmie beregning'!G16","v":{"v":500000,"d":"500,000"}},{"$nulls":6},"Optinal covers",null,null,"1.","Illness and Injury",{"$f":"SUM(S13:S22)","v":{"v":8.66611825342015,"d":"8.6661"}},{"$f":"SUM(T13:T22)","v":{"v":22.55348974573043,"d":"22.5535"}},{"$f":"SUM(U13:U22)","v":{"v":37.4037632661985,"d":"37.4038"}},null,"Sum",{"v":8.009945038080128,"d":"8.01"},{"v":20.84580523799206,"d":"20.85"},{"v":34.57165933102401,"d":"34.57"}]
[{"$nulls":3},"(ml. 0-2.000.000)","invaliditet",null,{"$f":"'Præmie beregning'!G17","v":{"v":500000,"d":"500,000"}},null,null,{"$f":"IF(C11=\"Ja\",S33,0)","v":{"v":8.049999999999999,"d":"8.05"}},null,{"$f":"J13-(J13*$L$4)","v":{"v":8.049999999999999,"d":"8.05"}},{"$nulls":5},"Unforseen illness and injury",{"$f":"+X13*$Y$4","v":{"v":6.499588690065111,"d":"6.499589"}},{"$f":"+Y13*$Y$4","v":{"v":16.915117309297816,"d":"16.915117"}},{"v":28.05282244964886,"d":"28.052822"},null,"Index",{"v":6.007458778560093,"d":"6.01"},{"v":15.634353928494047,"d":"15.63"},{"v":25.928744498268003,"d":"25.93"}]
[null,null,{"$f":"'Præmie beregning'!B18","v":"Ja"},"Dobbelt erstatning ",{"$nulls":9},"Grunddækninger",{"$nulls":3},"Pregnancy and birth",{"v":0.43330591267100743,"d":"0.433306"},{"$f":"+Y14*$Y$4","v":{"v":1.1276744872865214,"d":"1.127674"}},{"$f":"+Z14*$Y$4","v":{"v":1.8701881633099247,"d":"1.870188"}},null,"Index",{"v":0.4004972519040062,"d":"0.40"},{"v":1.0422902618996033,"d":"1.04"},{"v":1.7285829665512007,"d":"1.73"}]
[{"$nulls":13},"Grunddækning Domestic","Ja",null,null,"Psychologist and psychiatrist",{"v":0.43330591267100743,"d":"0.433306"},{"v":1.1276744872865214,"d":"1.127674"},{"v":1.8701881633099247,"d":"1.870188"},null,"Index",{"v":0.4004972519040062,"d":"0.40"},{"v":1.0422902618996033,"d":"1.04"},{"v":1.7285829665512007,"d":"1.73"}]
[null,"3.",{"$f":"'Præmie beregning'!B20","v":"Ja"},"Sygdomsinvaliditet/Rejseliv:",{"$nulls":9},"Grunddækning Norden","Ja",null,null,"Local travel costs",{"v":0.08666118253420156,"d":"0.086661"},{"v":0.2255348974573043,"d":"0.225535"},{"v":0.3740376326619849,"d":"0.374038"},null,"Index",{"v":0.08009945038080131,"d":"0.08"},{"v":0.20845805237992068,"d":"0.21"},{"v":0.34571659331024013,"d":"0.35"}]
[{"$nulls":3},"(ml. 0-1.000.000)","død",null,{"$f":"'Præmie beregning'!G21","v":{"v":500000,"d":"500,000"}},{"$nulls":6},"Grundækning Europa","Ja",null,null,"Expenses for food and accommodation",{"v":0.08666118253420156,"d":"0.086661"},{"v":0.2255348974573043,"d":"0.225535"},{"v":0.3740376326619849,"d":"0.374038"},null,"Index",{"v":0.08009945038080131,"d":"0.08"},{"v":0.20845805237992068,"d":"0.21"},{"v":0.34571659331024013,"d":"0.35"}]
[{"$nulls":3},"(ml. 0-1.000.000)","invaliditet",null,{"$f":"'Præmie beregning'!G22","v":{"v":500000,"d":"500,000"}},null,null,{"$f":"IF(C16=\"Ja\",S45,0)","v":{"v":8.5,"d":"8.50"}},null,{"$f":"S46+(S47-(S47*$L$4))","v":{"v":8.5,"d":"8.50"}},null,"Grunddækning Verden","Ja",null,null,"Convalescence compensation",{"v":0.08666118253420156,"d":"0.086661"},{"v":0.2255348974573043,"d":"0.225535"},{"v":0.3740376326619849,"d":"0.374038"},null,"Index",{"v":0.08009945038080131,"d":"0.08"},{"v":0.20845805237992068,"d":"0.21"},{"v":0.34571659331024013,"d":"0.35"}]
[{"$nulls":17},"Acute dental treatment ",{"v":0.4333059126710078,"d":"0.433306"},{"v":1.1276744872865214,"d":"1.127674"},{"v":1.8701881633099247,"d":"1.870188"},null,"Index",{"v":0.40049725190400653,"d":"0.40"},{"v":1.0422902618996033,"d":"1.04"},{"v":1.7285829665512007,"d":"1.73"}]
[null,"4.",{"$f":"'Præmie beregning'!B24","v":"Ja"},"Forsinket Fremmøde - Mistet, forsinket eller aflyst afgang",{"$nulls":5},{"$f":"IF(C20=\"Ja\",S49,0)","v":{"v":3.210636,"d":"3.21"}},null,{"$f":"J20-(J20*$L$4)","v":{"v":3.210636,"d":"3.21"}},null,"Accident Death and disability",{"$f":"C11","v":"Ja"},null,null,"Dental injury",{"v":0.08666118253420156,"d":"0.086661"},{"v":0.2255348974573043,"d":"0.225535"},{"v":0.3740376326619849,"d":"0.374038"},null,"Index",{"v":0.08009945038080131,"d":"0.08"},{"v":0.20845805237992068,"d":"0.21"},{"v":0.34571659331024013,"d":"0.35"}]
[{"$nulls":13},"Permanent disability in case of ilness",{"$f":"C16","v":"Ja"},null,null,"Physiotherapy and chiropractic treatment",{"v":0.4333059126710078,"d":"0.433306"},{"v":1.1276744872865214,"d":"1.127674"},{"v":1.8701881633099247,"d":"1.870188"},null,"Index",{"v":0.40049725190400653,"d":"0.40"},{"v":1.0422902618996033,"d":"1.04"},{"v":1.7285829665512007,"d":"1.73"}]
[null,"5.",{"$f":"'Præmie beregning'!B26","v":"Ja"},"Bagageforsinkelse ",{"$nulls":9},"Delay",{"$f":"C20","v":"Ja"},null,null,"Medical malpractice",{"v":0.08666118253420156,"d":"0.086661"},{"v":0.2255348974573043,"d":"0.225535"},{"v":0.3740376326619849,"d":"0.374038"},null,"Index",{"v":0.08009945038080131,"d":"0.08"},{"v":0.20845805237992068,"d":"0.21"},{"v":0.34571659331024013,"d":"0.35"}]
[{"$nulls":3},"(ml. 3.000-7.500)",null,null,{"$f":"'Præmie beregning'!G27","v":{"v":5000,"d":"5,000"}},null,null,{"$f":"IF(C22=\"Ja\",S53,0)","v":{"v":11.596458,"d":"11.60"}},null,{"$f":"J23-(J23*$L$4)","v":{"v":11.596458,"d":"11.60"}},null,"Lugage Delay",{"$f":"C22","v":"Ja"},null,null,"Repatriation",{"$f":"SUM(S24:S25)","v":{"v":2.298537238690214,"d":"2.298537"}},{"$f":"SUM(T24:T25)","v":{"v":5.981921147051065,"d":"5.981921"}},{"v":9.92069808193305,"d":"9.920698"},null,"Sum",{"v":2.1244986984366343,"d":"2.12"},{"v":5.5289875130769515,"d":"5.53"},{"v":9.16953173865467,"d":"9.17"}]
[{"$nulls":13},"Road Safety",{"$f":"C25","v":"Ja"},null,null,"Repatriation",{"$f":"+X24*$Y$4","v":{"v":2.183610376755703,"d":"2.183610"}},{"$f":"+Y24*$Y$4","v":{"v":5.682825089698512,"d":"5.682825"}},{"$f":"+Z24*$Y$4","v":{"v":9.424663177836397,"d":"9.424663"}},null,"Index",{"v":2.0182737635148027,"d":"2.02"},{"v":5.2525381374231035,"d":"5.25"},{"v":8.711055151721936,"d":"8.71"}]
[null,"6.",{"$f":"'Præmie beregning'!B29","v":"Ja"},"Vejhjælp",{"$nulls":5},{"$f":"IF(C25=\"Ja\",S56,0)","v":{"v":0.5613,"d":"0.56"}},null,{"$f":"J25-(J25*$L$4)","v":{"v":0.5613,"d":"0.56"}},null,"Luggage",{"$f":"C27","v":"Ja"},null,null,"Burial",{"$f":"+X25*$Y$4","v":{"v":0.11492686193451078,"d":"0.114927"}},{"v":0.2990960573525535,"d":"0.299096"},{"v":0.4960349040966529,"d":"0.496035"},null,"Index",{"v":0.10622493492183181,"d":"0.11"},{"v":0.2764493756538478,"d":"0.28"},{"v":0.4584765869327339,"d":"0.46"}]
[{"$nulls":13},"Curtailment",{"$f":"C31","v":"Ja"},null,null,"Escort and summoning",{"$f":"SUM(S27:S28)","v":{"v":0.5170115494936978,"d":"0.517012"}},{"$f":"SUM(T27:T28)","v":{"v":1.3455176053394415,"d":"1.345518"}},{"$f":"SUM(U27:U28)","v":{"v":2.231469388906707,"d":"2.231469"}},null,"Sum",{"v":0.47786494188015394,"d":"0.48"},{"v":1.2436389339926996,"d":"1.24"},{"v":2.0625090307585956,"d":"2.06"}]
[null,"7.",{"$f":"'Præmie beregning'!B31","v":"Ja"},"Bagage: ",{"$nulls":9},"Replacement employee",{"$f":"C33","v":"Ja"},null,null,"Summoning",{"$f":"+X27*$Y$4","v":{"v":0.2585057747468489,"d":"0.258506"}},{"$f":"+Y27*$Y$4","v":{"v":0.6727588026697208,"d":"0.672759"}},{"$f":"+Z27*$Y$4","v":{"v":1.1157346944533535,"d":"1.115735"}},null,"Index",{"v":0.23893247094007697,"d":"0.24"},{"v":0.6218194669963498,"d":"0.62"},{"v":1.0312545153792978,"d":"1.03"}]
[{"$nulls":3},"(ml. 10.000-75.000)","Bagage",null,{"$f":"'Præmie beregning'!G32","v":{"v":30000,"d":"30,000"}},{"$nulls":6},"Security Package",{"$f":"C35","v":"Ja"},null,null,"Escort",{"$f":"+X28*$Y$4","v":{"v":0.2585057747468489,"d":"0.258506"}},{"v":0.6727588026697208,"d":"0.672759"},{"v":1.1157346944533535,"d":"1.115735"},null,"Index",{"v":0.23893247094007697,"d":"0.24"},{"v":0.6218194669963498,"d":"0.62"},{"v":1.0312545153792978,"d":"1.03"}]
[{"$nulls":3},"(ml. 5.000-10.000)","Kontanter",null,{"$f":"'Præmie beregning'!G33","v":{"v":5000,"d":"5,000"}},null,null,{"$f":"IF(C27=\"Ja\",S59,0)","v":{"v":5.4863600144,"d":"5.49"}},null,{"$f":"J29-(J29*$L$4)","v":{"v":5.4863600144,"d":"5.49"}},null,"Personal Liability","Not in use",null,null,"Crisis Therapy",{"$f":"SUM(S30)","v":{"v":3.2999374203808956E-3,"d":"0.003300"}},{"$f":"SUM(T30)","v":{"v":0.008681665333199907,"d":"0.008682"}},{"$f":"SUM(U30)","v":{"v":0.014398080232388212,"d":"0.014398"}},null,"Sum",{"v":3.0500757771131457E-3,"d":"0.00"},{"v":0.008024314938293448,"d":"0.01"},{"v":0.013307899562734732,"d":"0.01"}]
[{"$nulls":13},"Personal Liability (with Bondbail)",{"$f":"C39","v":"Ja"},null,null,"Crisis setup",{"$f":"+X30*$Y$4","v":{"v":3.2999374203808956E-3,"d":"0.003300"}},{"$f":"+Y30*$Y$4","v":{"v":0.008681665333199907,"d":"0.008682"}},{"$f":"+Z30*$Y$4","v":{"v":0.014398080232388212,"d":"0.014398"}},null,"Index",{"v":3.0500757771131457E-3,"d":"0.00"},{"v":0.008024314938293448,"d":"0.01"},{"v":0.013307899562734732,"d":"0.01"}]
[null,"8.",{"$f":"'Præmie beregning'!B35","v":"Ja"},"Hjemkald",{"$nulls":5},{"$f":"IF(C31=\"Ja\",S65,0)","v":{"v":4.546530000000001,"d":"4.55"}},null,{"$f":"J31-(J31*$L$4)","v":{"v":4.546530000000001,"d":"4.55"}},null,"Assault coverage",{"$f":"C41","v":"Ja"}]
[{"$nulls":13},"Excess in connection with motor vehicle hire",{"$f":"C45","v":"Ja"}]
[null,"9.",{"$f":"'Præmie beregning'!B37","v":"Ja"},"Erstatningsmedarbejder",{"$nulls":5},{"$f":"IF(C33=\"Ja\",S69,0)","v":{"v":0.426588,"d":"0.43"}},null,{"$f":"J33-(J33*$L$4)","v":{"v":0.426588,"d":"0.43"}},null,"Excess cover",{"$f":"C43","v":"Ja"},null,"2.","Accident death and disability",{"$f":"SUM(S34:S43)","v":{"v":8.049999999999999,"d":"8.05"}},{"$nulls":3},"Sum"]
[{"$nulls":13},"Cancellation",{"$f":"C47","v":"Ja"},null,null,"Disability due to accident",{"$f":"IF(O20=\"Ja\",IF(O42=\"Fravalgt\",O41/100000*0.75,0),0)","v":{"v":0,"d":"0.00"}},{"$nulls":3},"Der beregnes ikke index"]
[null,"10.",{"$f":"'Præmie beregning'!B39","v":"Ja"},"Tryghedspakken",{"$nulls":5},{"$f":"IF(C35=\"Ja\",S73,0)","v":{"v":1.167504,"d":"1.17"}},null,{"$f":"J35-(J35*$L$4)","v":{"v":1.167504,"d":"1.17"}},null,"Group and conference (TBT)","Not in use",null,null,"Disability due to accident double",{"$f":"IF(O42=\"Ja\",O41/100000*1.25,0)","v":6.25},{"$nulls":3},"Der beregnes ikke index"]
[{"$nulls":13},"Consult","Not in use",null,null,"Death due to accident ",{"$f":"IF(O20=\"Ja\",O40/100000*0.34,0)","v":{"v":1.7000000000000002,"d":"1.70"}},{"$nulls":3},"Der beregnes ikke index"]
[null,"10.a",{"$f":"'Præmie beregning'!B41","v":"Fravalgt"},"Travel Security Hotline","Beregning af TSH - Se Række 70-74.",{"$nulls":12},"Injury compensation (not a sub-cover)",{"v":0,"d":"0.00"},{"$nulls":3},"Der beregnes ikke index"]
[{"$nulls":13},"Optinal Coversums",{"$nulls":3},"Economic disability - loss of workability",0.02,{"$nulls":3},"Der beregnes ikke index"]
[null,"11.",{"$f":"'Præmie beregning'!B43","v":"Ja"},"Privatansvar",{"$nulls":5},{"$f":"IF(C39=\"Ja\",S85,0)","v":{"v":0.684786,"d":"0.68"}},null,{"$f":"J39-(J39*$L$4)","v":{"v":0.684786,"d":"0.68"}},null,"Travel accident",{"$nulls":3},"Travel between home and work if disable",0.01,{"$nulls":3},"Der beregnes ikke index"]
[{"$nulls":13},"Cover sum death",{"$f":"G12","v":{"v":500000,"d":"500,000"}},null,null,"Aids and devices",0.02,{"$nulls":3},"Der beregnes ikke index"]
[null,"12.",{"$f":"'Præmie beregning'!B45","v":"Ja"},"Overfald ",{"$nulls":5},{"$f":"IF(C41=\"Ja\",S91,0)","v":{"v":1.1226,"d":"1.12"}},null,{"$f":"J41-(J41*$L$4)","v":{"v":1.1226,"d":"1.12"}},null,"Cover disability",{"$f":"G13","v":{"v":500000,"d":"500,000"}},null,null,"Training and occupational rehabilitation ",0.02,{"$nulls":3},"Der beregnes ikke index"]
[{"$nulls":13},"Cover Sum disability (Double)",{"$f":"C14","v":"Ja"},null,null,"Technical alterations to the environment",0.02,{"$nulls":3},"Der beregnes ikke index"]
[null,"13.",{"$f":"'Præmie beregning'!B47","v":"Ja"},"Selvrisiko Indbo og Bil forsikring",{"$nulls":5},{"$f":"IF(C43=\"Ja\",S94,0)","v":{"v":1.5716400000000001,"d":"1.57"}},null,{"$f":"J43-(J43*$L$4)","v":{"v":1.5716400000000001,"d":"1.57"}},{"$nulls":5},"Coma & Paralysis",0.01,{"$nulls":3},"Der beregnes ikke index"]
[{"$nulls":13},"Permanent disability in case of ilness"]
[null,"14.",{"$f":"'Præmie beregning'!B49","v":"Ja"},"Selvrisiko v. leje af motorkøjetøj",{"$nulls":5},{"$f":"IF(C45=\"Ja\",S98,0)","v":{"v":0.5613,"d":"0.56"}},null,{"$f":"J45-(J45*$L$4)","v":{"v":0.5613,"d":"0.56"}},null,"Cover Sum death",{"$f":"G17","v":{"v":500000,"d":"500,000"}},null,"2.","Death and permanent disability in case of ilness",{"$f":"SUM(S46:S47)","v":{"v":8.5,"d":"8.50"}},{"$nulls":3},"Sum"]
[{"$nulls":13},"Cover Sum disability",{"$f":"G18","v":{"v":500000,"d":"500,000"}},null,null,"Cover Sum death factor",{"$f":"IF(O21=\"Ja\",0.85/100000*O45,0)","v":4.25},{"$nulls":3},"Der beregnes ikke index"]
[null,"15.",{"$f":"'Præmie beregning'!B51","v":"Ja"},"Afbestilling",{"$nulls":13},"Cover Sum disability factor",{"$f":"IF(O21=\"Ja\",0.85/100000*O46,0)","v":4.25},{"$nulls":3},"Der beregnes ikke index"]
[{"$nulls":3},"(ml. 5.000-50.000)",null,null,{"$f":"'Præmie beregning'!G52","v":{"v":5000,"d":"5,000"}},null,null,{"$f":"IF(C47=\"Ja\",S101,0)","v":{"v":10.732056000000002,"d":"10.73"}},null,{"$f":"J48-(J48*$L$4)","v":{"v":10.732056000000002,"d":"10.73"}}]
[{"$nulls":13},"Lugage",null,null,"4.","Delay",{"$f":"SUM(S50:S51)","v":{"v":3.210636,"d":"3.21"}},{"$nulls":3},"Sum"]
[{"$nulls":9},"Dags præmie",null,"Dags præmie",null,"Cover sum Luggage",{"$f":"G28","v":{"v":30000,"d":"30,000"}},null,null,"Missed departure",{"$f":"IF(O22=\"Ja\",2.29,0)*$S$1","v":{"v":2.570754,"d":"2.57"}},{"$nulls":3},"Index, ligger i fomel"]
[null,"Norden:",null,null,"Antal rejsedage:",null,{"$f":"'Præmie beregning'!G55","v":0},null,null,{"$f":"$J$7+$J$13+$J$41+$J$18+$J$29+$J$23+$J$39+$J$25+$J$31+$J$33+$J$35+$J$20+$J$43+$J$45+$J$48+IF($C$37=\"Ja\",$J$71,0)","v":{"v":69.93775801440002,"d":"69.94"}},null,{"$f":"$L$7+$L$13+$L$41+$L$18+$L$29+$L$23+$L$39+$L$25+$L$31+$L$33+$L$35+$L$20+$L$43+$L$45+$L$48+IF($C$37=\"Ja\",$L$71,0)","v":{"v":69.93775801440002,"d":"69.94"}},null,"Additional cash-cover (sub)",{"$f":"G29","v":{"v":5000,"d":"5,000"}},null,null,"Delayed or cancelled public transport",{"$f":"IF(O22=\"Ja\",0.57,0)*$S$1","v":{"v":0.639882,"d":"0.64"}},{"$nulls":3},"Index, ligger i fomel"]
[null,"Europa:",null,null,"Antal rejsedage:",null,{"$f":"'Præmie beregning'!G56","v":0},null,null,{"$f":"$J$8+$J$13+$J$41+$J$18+$J$29+$J$23+$J$39+$J$25+$J$31+$J$33+$J$35+$J$20+$J$43+$J$45+$J$48+IF($C$37=\"Ja\",$J$72,0)","v":{"v":88.71775801439999,"d":"88.72"}},null,{"$f":"$L$8+$L$13+$L$41+$L$18+$L$29+$L$23+$L$39+$L$25+$L$31+$L$33+$L$35+$L$20+$L$43+$L$45+$L$48+IF($C$37=\"Ja\",$L$72,0)","v":{"v":88.71775801439999,"d":"88.72"}},null,"Cover sum Lugage Delay",{"$f":"G23","v":{"v":5000,"d":"5,000"}}]
[null,"Verden:",null,null,"Antal rejsedage:",null,{"$f":"'Præmie beregning'!G57","v":0},null,null,{"$f":"$J$9+$J$13+$J$41+$J$18+$J$29+$J$23+$J$39+$J$25+$J$31+$J$33+$J$35+$J$20+$J$43+$J$45+$J$48+IF($C$37=\"Ja\",$J$73,0)","v":{"v":108.7977580144,"d":"108.80"}},null,{"$f":"$L$9+$L$13+$L$41+$L$18+$L$29+$L$23+$L$39+$L$25+$L$31+$L$33+$L$35+$L$20+$L$43+$L$45+$L$48+IF($C$37=\"Ja\",$L$73,0)","v":{"v":108.7977580144,"d":"108.80"}},{"$nulls":4},"5.","Luggage delay",{"$f":"SUM(S54)","v":{"v":11.596458,"d":"11.60"}},{"$nulls":3},"Sum"]
[null,"Danmark*: ",null,null,"Antal rejsedage:",null,{"$f":"'Præmie beregning'!G58","v":0},null,null,{"$f":"$J$13+$J$41+$J$18+$J$29+$J$23+$J$39+$J$25+$J$35+$J$20+$J$43+$J$45+$J$48+IF($C$37=\"Ja\",$J$70,0)","v":{"v":53.24464001440001,"d":"53.24"}},null,{"$f":"$L$13+$L$41+$L$18+$L$29+$L$23+$L$39+$L$25+$L$35+$L$20+$L$43+$L$45+$L$48+IF($C$37=\"Ja\",$L$70,0)","v":{"v":53.24464001440001,"d":"53.24"}},null,"Cancellation",{"$nulls":3},"Luggage Delay",{"$f":"IF(O23=\"Ja\",IF(AND(O52>=3000,O52<=20000),7.43+ABS(3000-O52)/1000*1.45,\"\"),)*$S$1","v":{"v":11.596458,"d":"11.60"}},{"$nulls":3},"Index, ligger i fomel"]
[{"$nulls":13},"Cover sum Cancellation",{"$f":"G48","v":{"v":5000,"d":"5,000"}}]
[{"$nulls":9},"Total præmie",null,"Total præmie",{"$nulls":4},"6.","Road Safety",{"$f":"SUM(S57)","v":{"v":0.5613,"d":"0.56"}},{"$nulls":3},"Sum"]
[null,"Norden:",{"$nulls":7},{"$f":"G51*J51","v":{"v":0,"d":"0.00"}},null,{"$f":"L51*G51","v":{"v":0,"d":"0.00"}},{"$nulls":5},"Road Safety",{"$f":"IF(O24=\"Ja\",0.5,0)*$S$1","v":{"v":0.5613,"d":"0.56"}},{"$nulls":3},"Index, ligger i fomel"]
[null,"Europa:",{"$nulls":7},{"$f":"G52*J52","v":{"v":0,"d":"0.00"}},null,{"$f":"L52*G52","v":{"v":0,"d":"0.00"}}]
[null,"Verden:",{"$nulls":7},{"$f":"G53*J53","v":{"v":0,"d":"0.00"}},null,{"$f":"L53*G53","v":{"v":0,"d":"0.00"}},{"$nulls":4},"7.","Luggage",{"$f":"SUM(S60:S63)","v":{"v":5.4863600144,"d":"5.4864"}},{"$nulls":3},"Sum"]
[null,"Danmark*: ",{"$nulls":7},{"$f":"G54*J54","v":{"v":0,"d":"0.00"}},null,{"$f":"L54*G54","v":{"v":0,"d":"0.00"}},{"$nulls":5},"Personal and company property",{"$f":"IF(O25=\"Ja\",IF(AND(O50>=10000,O50<=32088),3.05+(O50-10000)/1000*0.10231800072,IF(O50>32088,5.31+(O50-32088)/(5000)*1.45,0)),0)","v":{"v":5.0963600144,"d":"5.0964"}},{"$nulls":3},"Der beregnes ikke index"]
[null,"Total:",{"$nulls":7},{"$f":"IF((SUM(J57:J60))<MINPRÆMIE,MINPRÆMIE,(SUM(J57:J60)))","v":{"v":1600,"d":"1,600.00"}},null,{"$f":"IF((SUM(L57:L60))>'ERV Data'!D17,\"Venligst kontakt ERV  \",(IF((SUM(L57:L60))<MINPRÆMIE,MINPRÆMIE,(SUM(L57:L60)))))","v":{"v":1600,"d":"1,600.00"}},{"$nulls":5},"Money / cash, credit cards, tickets",{"$f":"IF(O25=\"Ja\",IF(AND(O51>=5000,O51<=10000),0.29+(O51-5000)*0.00085,),)","v":{"v":0.29,"d":"0.2900"}},{"$nulls":3},"Der beregnes ikke index"]
[null,"*Danmark er eksklusiv Grunddækning, Hjemkaldelse og Erstatningsmedarbejder.",{"$nulls":15},"Travel documents ",{"$f":"IF($O$25=\"Ja\",0.05,0)","v":{"v":0.05,"d":"0.0500"}},{"$nulls":3},"Der beregnes ikke index"]
[{"$nulls":17},"Supplementary expenses (blocking of charge-/credit cards or new keys)",{"$f":"IF($O$25=\"Ja\",0.05,0)","v":{"v":0.05,"d":"0.0500"}},{"$nulls":3},"Der beregnes ikke index"]
[]
[{"$nulls":16},"8.","Curtaliment",{"$f":"SUM(S66:S67)","v":{"v":4.546530000000001,"d":"4.55"}},{"$nulls":3},"Sum"]
[{"$nulls":17},"Curtailment business reasons",{"$f":"IF(O26=\"Ja\",0.81,0)*$S$1","v":{"v":0.9093060000000001,"d":"0.91"}},{"$nulls":3},"Index, ligger i fomel"]
[{"$nulls":17},"Curtailment personal reasons",{"$f":"IF(O26=\"Ja\",3.24,)*$S$1","v":{"v":3.6372240000000002,"d":"3.64"}},{"$nulls":3},"Index, ligger i fomel"]
[]
[{"$nulls":16},"9.","Replacement employee",{"$f":"SUM(S70:S71)","v":{"v":0.426588,"d":"0.43"}},{"$nulls":3},"Sum"]
[null,"Travel Security Hotline beregning.",{"$nulls":7},0.09,null,{"$f":"ROUND(J70-(J70*$L$4),2)","v":0.09},{"$nulls":5},"Replacement employee",{"$f":"IF(O27=\"Ja\",0.19,0)*$S$1","v":{"v":0.213294,"d":"0.21"}},{"$nulls":3},"Index, ligger i fomel"]
[null,"Norden:",{"$nulls":7},0.97,null,{"$f":"ROUND(J71-(J71*$L$4),2)","v":0.97},{"$nulls":5},"Reimbursement of unused travel bookings",{"$f":"IF(O27=\"Ja\",0.19,0)*$S$1","v":{"v":0.213294,"d":"0.21"}}]
[null,"Europa:",{"$nulls":7},2.38,null,{"$f":"ROUND(J72-(J72*$L$4),2)","v":2.38}]
[null,"Verden:",{"$nulls":7},3.88,null,{"$f":"ROUND(J73-(J73*$L$4),2)","v":3.88},{"$nulls":4},"10.","Security Package",{"$f":"SUM(S74:S78)","v":{"v":1.167504,"d":"1.17"}},{"$nulls":3},"Sum"]
[null,"Sum TSH:",{"$nulls":7},{"$f":"SUM(J71:J73)","v":{"v":7.2299999999999995,"d":"7.23"}},null,{"$f":"J74-(J74*$L$4)","v":{"v":7.2299999999999995,"d":"7.23"}},{"$nulls":5},"Evacuation cost",{"$f":"IF($O$28=\"Ja\",0.17,)*$S$1","v":{"v":0.190842,"d":"0.19"}},{"$nulls":3},"Index, ligger i fomel"]
[{"$nulls":17},"Extended stay due to quarantine or natural catastrophe",{"$f":"IF($O$28=\"Ja\",0.17,)*$S$1","v":{"v":0.190842,"d":"0.19"}},{"$nulls":3},"Index, ligger i fomel"]
[{"$nulls":17},"Closure by order of public authority",{"$f":"IF($O$28=\"Ja\",0.17,)*$S$1","v":{"v":0.190842,"d":"0.19"}},{"$nulls":3},"Index, ligger i fomel"]
[{"$nulls":17},"Search and rescue",{"$f":"IF($O$28=\"Ja\",0.17,)*$S$1","v":{"v":0.190842,"d":"0.19"}},{"$nulls":3},"Index, ligger i fomel"]
[{"$nulls":17},"Hostage expenses",{"$f":"IF($O$28=\"Ja\",0.36,)*$S$1","v":{"v":0.404136,"d":"0.40"}},{"$nulls":3},"Index, ligger i fomel"]
[]
[{"$nulls":17},"Pesonal Liability and Legal Expenses",{"$f":"SUM(S81:S83)","v":{"$error":"#REF!"}},"Not in use",null,null,"Not in use"]
[{"$nulls":17},"Personal liability - Personal injury",{"$f":"IF($U$59=\"Ja\",(IF($U$29=\"Ja\",#REF!/2,0)*$S$94)*0.85,IF($U$29=\"Ja\",#REF!/2,0)*$S$94)*#REF!","v":{"$error":"#REF!"}},"Not in use",null,null,"Not in use"]
[{"$nulls":17},"Personal liability - Damage to property",{"$f":"IF($U$59=\"Ja\",(IF($U$29=\"Ja\",#REF!/2,0)*$S$94)*0.85,IF($U$29=\"Ja\",#REF!/2,0)*$S$94)*#REF!","v":{"$error":"#REF!"}},"Not in use",null,null,"Not in use"]
[{"$nulls":17},"Legal expenses",{"$f":"IF($U$59=\"Ja\",(IF($U$29=\"Ja\",#REF!,0)*$S$94)*0.85,IF($U$29=\"Ja\",#REF!,0)*$S$94)*#REF!","v":{"$error":"#REF!"}},"Not in use",null,null,"Not in use"]
[]
[{"$nulls":16},"11.","Pesonal Liability and Legal Expenses (inclusive Bond/Bail)",{"$f":"SUM(S86:S89)","v":{"v":0.684786,"d":"0.68"}},{"$nulls":3},"Sum"]
[{"$nulls":17},"Personal liability - Personal injury",{"$f":"IF($O$30=\"Ja\",0.39/2,0)*$S$1","v":{"v":0.21890700000000002,"d":"0.22"}},{"$nulls":3},"Index, ligger i fomel"]
[{"$nulls":17},"Personal liability - Damage to property",{"$f":"IF($O$30=\"Ja\",0.39/2,0)*$S$1","v":{"v":0.21890700000000002,"d":"0.22"}},{"$nulls":3},"Index, ligger i fomel"]
[{"$nulls":17},"Legal expenses",{"$f":"IF($O$30=\"Ja\",0.22,0)*$S$1","v":{"v":0.246972,"d":"0.25"}},{"$nulls":3},"Index, ligger i fomel"]
[{"$nulls":17},"Bond/Bail",{"$f":"IF($O$30=\"Ja\",0,0)*$S$1","v":{"v":0,"d":"0.00"}},{"$nulls":3},"Index, ligger i fomel"]
[]
[{"$nulls":16},"12.","Assault coverage",{"$f":"SUM(S92)","v":{"v":1.1226,"d":"1.12"}},{"$nulls":3},"Sum"]
[{"$nulls":17},"Assault coverage",{"$f":"IF($O$31=\"Ja\",1)*$S$1","v":{"v":1.1226,"d":"1.12"}},{"$nulls":3},"Index, ligger i fomel"]
[]
[{"$nulls":16},"13.","Excess cover",{"$f":"SUM(S95:S96)","v":{"v":1.5716400000000001,"d":"1.57"}},{"$nulls":3},"Sum"]
[{"$nulls":17},"Excess car insurance CoR",{"$f":"IF($O$33=\"Ja\",1.36,0)*$S$1","v":{"v":1.526736,"d":"1.53"}},{"$nulls":3},"Index, ligger i fomel"]
[{"$nulls":17},"Excess home insurance CoR",{"$f":"IF($O$33=\"Ja\",0.04,0)*$S$1","v":{"v":0.044904,"d":"0.04"}},{"$nulls":3},"Index, ligger i fomel"]
[]
[{"$nulls":16},"14.","Excess in connection with motor vehicle hire",{"$f":"SUM(S99)","v":{"v":0.5613,"d":"0.56"}},{"$nulls":3},"Sum"]
[{"$nulls":17},"Excess in connection with motor vehicle hire",{"$f":"IF(O32=\"Ja\",0.5*$S$1)","v":{"v":0.5613,"d":"0.56"}},{"$nulls":3},"Index, ligger i fomel"]
[]
[{"$nulls":16},"15.","Cancellation",{"$f":"SUM(S102)","v":{"v":10.732056000000002,"d":"10.73"}},{"$nulls":3},"Sum"]
[{"$nulls":17},"Cancellation",{"$f":"IF(O34=\"Ja\",IF(AND(O55>=5000,O55<=10000),9.56+(O55-5000)/1000*1.33,IF(AND(O55>10000,O55<25000),9.56+5000/1000*1.33+(O55-10000)/1000*1.1253,9.56+5000/1000*1.33+15000/1000*1.1253+(O55-25000)/1000*0.788)),0)*$S$1","v":{"v":10.732056000000002,"d":"10.73"}},{"$nulls":3},"Index, ligger i fomel"]

{"sheet":"ERV Data","index":11,"n_rows":186,"n_cols":11,"rows_kept":186,"hidden":true,"merged":[[1,1,1,4],[21,1,21,4],[67,1,67,4],[79,1,79,4],[87,1,87,4]]}
[null,null,"Beregner version","#40503 - Y2022_1.00"]
[]
[]
[null,null,"Opdateret d. ","2022-10-31"]
[null,null,"Europæiske ERV ansvarlig:","Firmasupport"]
[]
[null,null,"Skal beregneren have mulighed for honorar / facilitetstillæg.","Nej"]
[null,null,"* Svaret ændre muligheden for honorar tillæg, linje 60-65 Præmieberegning"]
[]
[null,null,"Skal bruger blive informeret om \"HUSK skadesprocent\"","Ingen tekst"]
[null,null,"* Svaret ændre teksten på linje 35, i arket ”Info om virksomheden”"]
[]
[null,null,"HUSK i NIS: Sales method","Solgt via beregner"]
[null,null,"Mægler navn:","Special Risk - forsikringsformidling ApS"]
[null,null,"Maksimalt rabat sats:",{"v":0.42,"d":"42%"}]
[null,null,"Minimum præmie sats:",{"v":1600,"d":"1,600"}]
[null,null,"Maksimum præmie beløb:",{"v":100000,"d":"100,000"}]
[]
[null,null,"Er beregneren til: Mægler, Agent eller forsikringsselskab","Agentur"]
[null,null,"* Svaret tilføjer juridisk tekst på pdf. tilbuddet til kunden. ”"]
[]
[null,"Værdier som indsættes ved nulstilling af arket \"Beregningsark\""]
[]
[null,null,"2. Rejseulykke, Stk. 5: ","Ja"]
[null,null,"(Min 1 - Max 2.000.000 kr.)",{"v":500000,"d":"500,000"}]
[null,null,"(Min 1 - Max 2.000.000 kr.)",{"v":500000,"d":"500,000"}]
[null,null,"Dobbelt erstatning ","Ja"]
[]
[null,null,"3. Rejseliv og Sygdomsinvaliditet, Stk. 6:","Ja"]
[null,null,"(Min 1 - Max 1.000.000 kr.)",{"v":500000,"d":"500,000"}]
[null,null,"(Min 1 - Max 1.000.000 kr.)",{"v":500000,"d":"500,000"}]
[]
[null,null,"4. Forsinket Fremmøde - Mistet, forsinket eller aflyst afgang, Stk 7:","Ja"]
[]
[null,null,"5. Bagageforsinkelse, Stk. 8:","Ja"]
[null,null,"(Min 3.000 - Max 7.000 kr.)",{"v":5000,"d":"5,000"}]
[]
[null,null,"6. Vejhjælp, Stk 9:","Ja"]
[]
[null,null,"7. Bagage, Stk 10:","Ja"]
[null,null,"(Bagage Min 10.000 - Max 75.000 kr.)",{"v":30000,"d":"30,000"}]
[null,null,"(Kontanter Min 5.000 - Max 10.000 kr.)",{"v":5000,"d":"5,000"}]
[]
[null,null,"8. Hjemkald, Stk 11:","Ja"]
[]
[null,null,"9. Erstatningsmedarbejder, Stk 12:","Ja"]
[]
[null,null,"10. Tryghedspakken, Stk 13:","Ja"]
[null,null,"Travel Security Hotline - 24/7/365","Fravalgt"]
[]
[null,null,"11 Privatansvar, Stk 14:","Ja"]
[]
[null,null,"12 Overfald, Stk 15:","Ja"]
[{"$nulls":4},{"$f":"(IF($D$24=\"Fravalgt\",\"HUSK Værdi 0\",\"\"))","v":""}]
[null,null,"13. Selvrisiko Indbo og Bil forsikring, Stk 16:","Ja",{"$f":"IF($D$24=\"Fravalgt\",\"HUSK Værdi 0\",\"\")","v":""}]
[{"$nulls":4},{"$f":"IF($D$24=\"Fravalgt\",\"HUSK Værdi 0\",\"\")","v":""}]
[null,null,"14. Selvrisiko v. leje af motorkøjetøj, Stk 17:","Ja"]
[]
[null,null,"15. Afbestilling,  Stk. 18","Ja",{"$f":"IF($D$58=\"Fravalgt\",\"HUSK Værdi 0\",\"\")","v":""}]
[{"$nulls":3},{"v":5000,"d":"5,000"},{"$f":"IF($D$58=\"Fravalgt\",\"HUSK Værdi 0\",\"\")","v":""}]
[]
[null,null,"Antal rejsedage","Antal rejsedage:"]
[null,null,"Norden",0]
[null,null,"Europa",0]
[null,null,"Verden",0]
[null,null,"Danmark",0]
[]
[null,"Værdier som indsættes ved nulstilling af arket \"Klausuler\""]
[]
[null,null,"Medrejsende ægtefæller/samlever","Ja"]
[null,null,"Medrejsende børn","Ja"]
[null,null,"Kombinerede Erhvervs- og ferierejser","Ja"]
[]
[null,null,"Bestyrelsesmedlemmer","Ja"]
[null,null,"Inviterede gæster","Ja"]
[null,null,"Eksterne konsulenter","Ja"]
[]
[null,null,"Medforsikrede datterselskaber","Fravalgt"]
[]
[null,"Værdier som indsættes ved nulstilling af arket \"Bruger info\""]
[]
[null,null,"Agent nummer:",3501383]
[null,null,"Kontaktperson:","Kontakt person - Agent"]
[null,null,"Email - kontaktperson:","Email Kontakt person - Agent"]
[null,null,"Tlf - kontaktperson:","Tlf Kontakt person - Agent"]
[null,null,"Ønsket rabat sats:",{"v":0,"d":"0%"},null,"Rabat sats for høj"]
[]
[null,"Standard som kan kopiers til ovenstående hvis ikke individuelt tilpasset."]
[]
[{"$nulls":3},"123456789 - Agent"]
[{"$nulls":3},"Kontakt person - Agent"]
[{"$nulls":3},"Email Kontakt person - Agent"]
[{"$nulls":3},"Tlf Kontakt person - Agent"]
{"$rows_empty":28}
[null,null," "]
{"$rows_empty":63}
[{"$nulls":7},"TEST",{"$f":"SUM(I149:I151)+SUM(I161:I163)+SUM(I165:I182)","v":0},{"$f":"SUM(J149:J151)+SUM(J161:J163)+SUM(J165:J182)","v":0},{"$f":"SUM(K149:K151)+SUM(K161:K163)+SUM(K165:K182)","v":0}]